{"text_format":"1","workbook":"xlsx","n_sheets":25,"sheets":["Dane Wnioskodawcy","Lokalizacja projektu","Rachunek bankowy","Zaliczki","Podatek VAT","Rozpoczęcie projektu","Trwałość","Zasady horyzontalne","Wykonalność","Paliwa kopalne ","Środowisko","Doświadczenie","Grupa docelowa","RSI i wysoka technika","Specyfikacja kosztów ","Koszty pośrednie","Kumulacja pomocy","Obszar EOG","Tajemnica przedsiębiorstwa","Oświadczenia","Słownik 2.7","słownik RIS","słownik koszty 1.3","Słownik","Arkusz1"],"not_rendered":{"charts":0,"images":5,"macros":1,"external_links":4,"defined_names":47,"comments":2,"pivot_tables":0},"unopened":[],"bounds":{"document_bytes":16777216,"sheet_cells":100000,"rows_first":2000,"rows_last":500,"rows_between":2000,"halvings":0,"cell_chars":16384,"cell_head_chars":4096},"cells_cut":0,"cells_raw":0,"read":"whole","date_system":"1900"}

{"sheet":"Dane Wnioskodawcy","index":0,"n_rows":26,"n_cols":2,"rows_kept":26,"cut":false,"hidden":false,"merged":[]}
["Opis pola","Dane do wypełnienia"]
["Nazwa Wnioskodawcy"]
["NIP"]
["Numer naboru","FELU.02.07-IP.01-001/26"]
["Nazwa Działania","Lubelskie MŚP na rynkach zagranicznych"]
["Data sporządzania dokumentu"]
["Lp.","Niniejszy dokument składa się z następujących arkuszy (kliknij aby przejść do arkusza):"]
["1.","Lokalizacja projektu"]
["2.","Rachunek bankowy"]
["3.","Zaliczki"]
["4.","Podatek VAT"]
["5.","Rozpoczęcie projektu"]
["6.","Trwałość"]
["7.","Zasady horyzontalne"]
["8.","Wykonalność"]
["9.","Paliwa kopalne "]
["10.","Środowisko "]
["11.","Doświadczenie"]
["12.","Grupa docelowa"]
["13.","Specyfikacja kosztów"]
["14.","Koszty pośrednie"]
["15.","Kumulacja pomocy"]
["16.","Obszar EOG"]
["17.","Tajemnica przedsiębiorstwa"]
["18.","Oświadczenia"]
[null,"Klauzula informacyjna Lubelskiej Agencji Wspierania Przedsiębiorczości w Lublinie (LAWP):Zgodnie z art. 47 ust. 1 pkt 2) ustawy z dnia 28 kwietnia 2022 r. o zasadach realizacji zadań finansowanych ze środków europejskich  w perspektywie finansowej 2021–2027 (ustawa wdrożeniowa) LAWP informuje, iż może wymagać od wnioskodawców oświadczeń na potwierdzenie faktów lub stanu prawnego, niezbędnych do oceny projektu lub objęcia go dofinansowanie.\nPonadto, zgodnie z art. 47 ust. 2 ustawy wdrożeniowej, oświadczenia o których mowa powyżej, są składane pod rygorem odpowiedzialności karnej za składanie fałszywych oświadczeń."]

{"sheet":"Lokalizacja projektu","index":1,"n_rows":7,"n_cols":11,"rows_kept":7,"cut":false,"hidden":false,"merged":[[0,0,0,10]]}
["Miejsce realizacji projektu\nW tabeli poniżej należy wskazać miejsca, gdzie będzie realizowany projekt. W przypadku gdy projekt posiada wiele lokalizacji, należy wskazać wszystkie miejsca lokalizacji projektu. Przez pojęcie lokalizacji projektu należy rozumieć miejsce lub miejsca na obszarze objętym FEL 2021-2027, bezpośrednio związane z jego realizacją."]
["Lp.","Województwo","Powiat","Gmina","Miejscowość","Kod pocztowy","Ulica","Numer budynku","Numer lokalu ","Numer księgi wieczystej nieruchomości, na której zlokalizowany jest projekt","Numer działki"]
[null,"W polu poniżej należy podać nazwę województwa w którym będzie zlokalizowany projekt","W polu poniżej należy wskazać powiat","W polu poniżej należy wskazać gminę","W polu poniżej należy wskazać miejscowość","W polu poniżej należy wskazać kod pocztowy miejscowości ","W polu poniżej należy wskazać ulicę","W polu poniżej należy wskazać numer budynku","W polu poniżej należy wskazać numer lokalu","W polu poniżej należy podać numer księgi wieczystej w następującym formacie XXXX/XXXXXXXX/X. Jeżeli jedna nieruchomość będąca lokalizacją projektu objęta jest więcej niż jedną księgą wieczystą należy wymienić wszystkie numery ksiąg dotyczące realizowanej inwestycji, czytelnie oddzielając je od siebie.","W polu poniżej należy podać numer działki, na której zlokalizowana jest nieruchomość lub na której będzie realizowana inwestycja, jeżeli działka jest niezabudowana. Jeżeli jedna nieruchomość będąca lokalizacją znajduje się na kilku działkach lub inwestycja jest realizowana na kilku działkach niezabudowanych należy wymienić wszystkie numery działek, czytelnie oddzielając je od siebie."]
[1,"Lubelskie"]
[2,"Lubelskie"]
[3,"Lubelskie"]
[4,"Lubelskie"]

{"sheet":"Rachunek bankowy","index":2,"n_rows":2,"n_cols":1,"rows_kept":2,"cut":false,"hidden":false,"merged":[]}
["Rachunek bankowy"]
["W wierszu poniżej należy wskazać numer rachunku bankowego, na który LAWP będzie przekazywać płatności w formie refundacji. Jeżeli na dzień składania wniosku, wnioskodawca nie dysponuje wyodrębnionym rachunkiem bankowym, wówczas istnieje możliwość wskazania numeru rachunku bankowego przed podpisaniem umowy o dofinansowanie (w takim przypadku należy pole poniżej pozostawić puste)"]

{"sheet":"Zaliczki","index":3,"n_rows":4,"n_cols":1,"rows_kept":4,"cut":false,"hidden":false,"merged":[]}
["Deklaracja korzystania z płatności zaliczkowych"]
["W wierszu poniżej należy wskazać czy wnioskodawca zamierza finansować realizację projektu w formie zaliczki, wybierając TAK/NIE"]
[]
["Jeżeli wnioskodawca zamierza finansować projekt w formie zaliczki, należy wskazać w wierszu poniżej wyodrębniony numer rachunku bankowego. Jeżeli na dzień składania wniosku, wnioskodawca nie dysponuje wyodrębnionym rachunkiem bankowym do celów zaliczkowych, wówczas istnieje możliwość wskazania numeru rachunku bankowego przed podpisaniem umowy o dofinansowaniem (w takim przypadku należy pole poniżej pozostawić puste)."]

{"sheet":"Podatek VAT","index":4,"n_rows":4,"n_cols":1,"rows_kept":4,"cut":false,"hidden":false,"merged":[]}
["Kwalifikowalność podatku VAT"]
["W poniższym polu należy wskazać, czy wnioskodawca ma możliwość odzyskania VAT. Jeżeli wnioskodawca ma zgodnie z obowiązującymi przepisami prawa możliwość odzyskania podatku VAT tj. obniżenia kwoty podatku należnego o kwotę podatku naliczonego lub ubiegania się o zwrot VAT wówczas należy wybrać TAK, a podatek VAT stanowi w takim przypadku koszty niekwalifikowalne projektu (UWAGA! Dla uznania podatku VAT za niekwalifikowalny wystarczające jest posiadanie prawa tj. potencjalnej możliwości prawnej, do ubiegania się o zwrot VAT, nawet jeśli faktycznie zwrot nie nastąpi np. ze względu na niepodjęcie czynności zmierzających do realizacji tego prawa).\nJeżeli wnioskodawca zgodnie z obowiązującymi przepisami prawa nie ma możliwości odzyskania podatku VAT tj. obniżenia kwoty podatku należnego o kwotę podatku naliczonego lub ubiegania się o zwrot VAT wówczas, należy wybrać opcję \"NIE\"."]
[]
["W przypadku wybrania opcji NIE w wierszu poniżej należy wskazać podstawy prawne oraz opisać, z czego wynika brak możliwości odzyskania VAT i/lub brak możliwości ubiegania się o zwrot VAT."]

{"sheet":"Rozpoczęcie projektu","index":5,"n_rows":4,"n_cols":1,"rows_kept":4,"cut":false,"hidden":false,"merged":[]}
["Rozpoczęcie projektu"]
["W wierszu poniżej należy wskazać czy wnioskodawca przed dniem złożenia wniosku o dofinansowanie podejmował czynności związane lub służące rozpoczęciu realizacji projektu."]
[]
["Jeżeli w pytaniu powyżej wybrano opcję TAK, w wierszu poniżej należy opisać jakie działania w związku z rozpoczęciem realizacji projektu zostały podjęte przez wnioskodawcę (np. prace przygotowawcze, uzyskanie niezbędnych zezwoleń, decyzji, opracowanie niezbędnych do wdrożenia projektu dokumentów itp.). Jeżeli wnioskodawca podejmował działania związane z realizacją przedmiotowego projektu, dla każdego z tych działań należy wskazać daty ich przeprowadzenia oraz wskazać czy działania zostały ukończone i jakie są ich ewentualne efekty. Jeżeli wnioskodawca rozpoczął realizację projektu i Regulamin wyboru projektów dopuszcza taką możliwość, należy jednoznacznie wskazać czy projekt realizowany był dotychczas zgodnie z prawem krajowym i unijnym oraz nie został fizycznie ukończony lub w pełni wdrożony przed przedłożeniem wniosku o dofinansowanie w ramach naboru, niezależnie od tego, czy dokonano wszystkich powiązanych płatności\nJeżeli wybrano opcję NIE wiersz poniżej może pozostać niewypełniony."]

{"sheet":"Trwałość","index":6,"n_rows":2,"n_cols":1,"rows_kept":2,"cut":false,"hidden":false,"merged":[]}
["Zachowanie trwałości projektu"]
["W wierszu poniżej należy opisać warunki zachowania trwałości projektu w odniesieniu do art. 65 Rozporządzenia Parlamentu Europejskiego i Rady (UE) nr 2021/1060, w tym złożyć deklarację że trwałość zostanie zachowana przez wymagany okres, w zależności od statusu przedsiębiorstwa. Wnioskodawca zobligowany jest do zachowania okresu trwałości, zgodnie z art. 65 Rozporządzenia ogólnego, tj. 5 lat od zakończenia realizacji projektu, natomiast w przypadku MŚP 3 lata od zakończenia realizacji projektu. Zgodnie z art. 65 trwałość operacji nie zostanie zachowana w przypadku: a) zaprzestania lub przeniesienia działalności produkcyjnej poza region na poziomie NUTS 2, w którym dana operacja otrzymała wsparcie; b) zmiany własności elementu infrastruktury, która daje przedsiębiorstwu lub podmiotowi publicznemu nienależną korzyść; c) istotnej zmiany wpływającej na charakter operacji, jej cele lub warunki wdrażania, mogącej doprowadzić do naruszenia pierwotnych celów operacji."]

{"sheet":"Zasady horyzontalne","index":7,"n_rows":15,"n_cols":1,"rows_kept":15,"cut":false,"hidden":false,"merged":[]}
["Zasady horyzontalne (na podstawie art. 9 ust. 1-4 Rozporządzenia Parlamentu Europejskiego i Rady (UE) 2021/1060 z dnia 24 czerwca 2021 r.)"]
["Zgodność z Kartą Praw Podstawowych Unii Europejskiej"]
["W wierszu poniżej należy opisać czy projekt jest zgodny z Kartą Praw Podstawowych Unii Europejskiej, w zakresie odnoszącym się do sposobu realizacji i zakresu projektu. Należy wskazać z jakimi aspektami Karty Praw Podstawowych projekt jest zgodny i w jaki sposób przejawia się ww. zgodność w projekcie. Zgodność projektu z Kartą Praw Podstawowych Unii Europejskiej należy rozumieć jako brak sprzeczności pomiędzy zapisami projektu a wymogami tego dokumentu lub stwierdzenie, że te wymagania są neutralne wobec zakresu i zawartości projektu. Zastosowanie mają Wytyczne Komisji Europejskiej dotyczące zapewnienia poszanowania Karty praw podstawowych Unii Europejskiej przy wdrażaniu europejskich funduszy strukturalnych i inwestycyjnych, w szczególności załącznik nr III."]
[]
["Zgodność z zasadą równości mężczyzn i kobiet"]
["W wierszu poniżej należy opisać czy projekt ma pozytywny wpływ na zasadę równości mężczyzn i kobiet. Należy wskazać w jaki sposób przejawia się ww. zgodność w projekcie. Przez zgodność z tą zasadą należy rozumieć, z jednej strony zaplanowanie takich działań w projekcie, które wpłyną na wyrównywanie szans danej płci będącej w gorszym położeniu (o ile takie nierówności zostały zdiagnozowane w projekcie), z drugiej strony zaś stworzenie takich mechanizmów, aby na żadnym etapie wdrażania projektu nie dochodziło do dyskryminacji i wykluczenia ze względu na płeć. Dopuszczalne jest także uznanie neutralności projektu w stosunku do zasady równości kobiet i mężczyzn. O neutralności można mówić jednak tylko wtedy, kiedy wnioskodawca uzasadni, dlaczego dany projekt nie jest w stanie zrealizować jakichkolwiek działań w zakresie spełnienia ww. zasady."]
[]
["Zgodność z zasadami dostępności dla osób z niepełnosprawnościami, w tym z koncepcją uniwersalnego projektowania "]
["W wierszu poniżej należy opisać czy projekt ma pozytywny bądź neutralny wpływ na realizację zasad dostępności dla osób z niepełnosprawnościami zgodnie z Wytycznymi dotyczącymi realizacji zasad równościowych w ramach funduszy unijnych na lata 2021-2027, w tym czy realizacja projektu uwzględnia działania zgodne z koncepcją uniwersalnego projektowania. Należy szczegółowo opisać, które rozwiązania zastosowane w projekcie mają pozytywny wpływ na realizację zasad dostępności i wyjaśnić dlaczego lub wskazać że projekt w tym zakresie jest neutralny i wyjaśnić dlaczego. Ponadto należy szczegółowo opisać w jakim zakresie w projekcie ma zastosowanie uniwersalne projektowanie i w jaki sposób przejawia się to w projekcie. W opisie należy się odwoływać do aspektów, które zostały szczegółowo opisane w Wytycznych dotyczących realizacji zasad równościowych w ramach funduszy unijnych na lata 2021-2027, w tym do standardów dostępności."]
[]
["Zgodność z Konwencją o Prawach Osób Niepełnosprawnych"]
["W wierszu poniżej należy opisać czy projekt jest zgodny z Konwencją o Prawach Osób Niepełnosprawnych, w zakresie odnoszącym się do sposobu realizacji, zakresu projektu i wnioskodawcy. Należy wskazać z jakimi aspektami Konwencji o Prawach Osób Niepełnosprawnych projekt jest zgodny i w jaki sposób przejawia się ww. zgodność w projekcie. Zgodność projektu z Konwencją o Prawach Osób Niepełnosprawnych należy rozumieć jako brak sprzeczności pomiędzy zapisami projektu a wymogami tego dokumentu lub stwierdzenie, że te wymagania są neutralne wobec zakresu i zawartości projektu."]
[]
["Zgodnośc z zasadami niedyskryminacji"]
["W wierszu poniżej należy opisać czy realizacja projektu nie będzie skutkować jakąkolwiek dyskryminacją ze względu na płeć, rasę lub pochodzenie etniczne, religię lub światopogląd, niepełnosprawność, wiek lub orientację seksualną. Należy wskazać w jaki sposób brak dyskryminacji przejawia się w projekcie."]

{"sheet":"Wykonalność","index":8,"n_rows":3,"n_cols":1,"rows_kept":3,"cut":false,"hidden":false,"merged":[]}
["Wykonalność"]
["1. Decyzje administracyjne i uzgodnienia z właściwymi organami"]
["W wierszu poniżej należy wskazać czy realizacja projektu wymaga uzyskania decyzji administracyjnych i/lub innych uzgodnień z właściwymi organami lub opinii z właściwych organów (np. zgoda komisji bioetycznej, pozwolenie na budowę, dokonanie zgłoszenia robót budowalnych, opinie/decyzje dotyczące przeprowadzenia postepowania OOŚ, zgoda konserwatora zabytków itp.). Jeżeli realizacja projektu wymaga uzyskania decyzji administracyjnych i/lub innych uzgodnień lub opinii z właściwych organów, należy wskazać jakich oraz czy wnioskodawca już je pozyskał (jeśli tak to kiedy) czy dopiero planuje ich pozyskanie (jeśli tak to kiedy)."]

{"sheet":"Paliwa kopalne ","index":9,"n_rows":23,"n_cols":1,"rows_kept":23,"cut":false,"hidden":false,"merged":[]}
["Zakup urządzeń lub maszyn które będą funkcjonować w oparciu o spalanie paliw kopalnych"]
["1. Czy zaplanowane w projekcie wydatki obejmują zakup urządzeń lub maszyn, które będą funkcjonować w oparciu o spalanie paliw kopalnych?"]
[]
["Jeżeli w pytaniu powyżej wybrano opcję TAK, w wierszach poniżej należy wypełnić dalszą część zakładki. Dodatkowo w polu poniżej należy wymienić urządzenia lub maszyny, które będą funkcjonować w oparciu o spalanie paliw kopalnych (nazwy muszą być zgodne z nazwami maszyn/urządzeń w zakładce \"Specyfikacja kosztów\")."]
[]
["2. Konieczność zakupu urządzeń lub maszyn zasilanych poprzez spalanie paliw kopalnych"]
["W wierszu poniżej należy opisać czy zakup urządzeń lub maszyn zasilanych poprzez spalanie paliw kopalnych jest niezbędny z punktu widzenia osiągnięcia celu inwestycji. Odpowiedź należy uzasadnić w polu poniżej, w odniesieniu do każdego urządzenia/maszyny zaplanowanego do zakupu w ramach projektu zasilanego paliwami kopalnymi. "]
[]
["3. Zamiennik planowanej do nabycia maszyny/urządzenia, które będą funkcjonować w oparciu o spalanie paliw kopalnych"]
["W wierszu poniżej należy wyjaśnić czy planowana do nabycia maszyna/urządzenie, które będą funkcjonować w oparciu o spalanie paliw kopalnych, posiada zamiennik będący realną alternatywną technologią o niezbędnej funkcjonalności, parametrach. Jeżeli TAK, należy scharakteryzować alternatywne urządzenia. Jeżeli NIE, należy uzasadnić. Odpowiedzi należy udzielić w odniesieniu do każdego urządzenia/maszyny zaplanowanego do zakupu w ramach projektu zasilanego paliwami kopalnymi. "]
[]
["W punkcie poniżej należy opisać czy zamiennik wskazany w pkt. 3 jest dostępny w czasie umożliwiającym realizację projektu według założeń przyjętych przez wnioskodawcę. Dodatkowo jeżeli zamiennik jest dostępny w czasie umożliwiającym realizację projektu według założeń przyjętych przez wnioskodawcę, należy scharakteryzować alternatywne urządzenia. W przypadku gdy ww. zamiennik nie jest dostępny w czasie umożliwiającym realizację projektu według założeń przyjętych przez wnioskodawcę, należy uzasadnić. Odpowiedzi należy udzielić w odniesieniu do każdego urządzenia/maszyny zaplanowanego do zakupu w ramach projektu zasilanego paliwami kopalnymi posiadającego zamiennik który jest dostępny w czasie umożliwiającym realizację projektu według założeń przyjętych przez wnioskodawcę."]
[]
["W wierszu poniżej należy opisać czy zamiennik wskazany w pkt. 3 gwarantuje ciągłość działania oraz stałą, porównywalną wydajność procesową pracy umożliwiającą osiągnięcie celu projektu w zakresie nie mniejszym niż z wykorzystaniem technologii opartych na spalaniu paliw kopalnych. W przypadku gdy zamiennik wskazany w pkt. 3 gwarantuje ciągłość działania oraz stałą, porównywalną wydajność procesową pracy umożliwiającą osiągnięcie celu projektu w zakresie nie mniejszym niż z wykorzystaniem technologii opartych na spalaniu paliw kopalnych w  polu poniżej, należy uzasadnić wybraną odpowiedź w odniesieniu do zamiennika każdej maszyny/urządzenia które będzie funkcjonować w oparciu o spalanie paliw kopalnych."]
[]
["4. Infrastruktura umożliwiająca szybkie ładowanie/tankowanie zamiennika."]
["W wierszu poniżej należy opisać czy infrastruktura umożliwiająca szybkie ładowanie/tankowanie zamiennika, o którym mowa w pkt 3 jest wymagana dla jego efektywnego wykorzystania i jest dostępna w miejscu realizacji inwestycji/wykorzystania. Należy uzasadnić wybraną odpowiedź w odniesieniu do zamiennika każdej maszyny/urządzenia które będzie funkcjonować w oparciu o spalanie paliw kopalnych."]
[]
["5. Dodatkowe działania przy zakupie zamiennika."]
["W wierszu ponizej należy opisać czy zakup zamiennika, o którym mowa w pkt. 3 wymuszałby dodatkowe działania (np. związane z koniecznością dostosowania infrastruktury technicznej wnioskodawcy w celu zapewnienia jej kompatybilności z tym zamiennikiem). Należy uzasadnić w odniesieniu do zamiennika każdej maszyny/urządzenia które będzie funkcjonować w oparciu o spalanie paliw kopalnych. "]
[]
["6. Koszt nabycia zamiennika, o którym mowa w pkt 3 i jego użytkowania / eksploatacji w okresie realizacji i trwałości projektu."]
["W wierszu ponizej należy opisać czy koszt nabycia zamiennika, o którym mowa w pkt 3 i jego użytkowania / eksploatacji w okresie realizacji i trwałości projektu przekroczy odpowiednie koszty maszyny/urządzenia zasilanego paliwem kopalnym. "]

{"sheet":"Środowisko","index":10,"n_rows":67,"n_cols":1,"rows_kept":67,"cut":false,"hidden":false,"merged":[]}
["Sekcja I. Zgodność z zasadą „nie czyń poważnych szkód” (DNSH - Do No Significant Harm) "]
["Zasada \"nie czyń poważnych szkód\" DNSH wynika z art. 9 ust. 4 Rozporządzenia Parlamentu Europejskiego i Rady (UE) 2021/1060 z dnia 24 czerwca 2021 r. ustanawiającego wspólne przepisy dotyczące Europejskiego Funduszu Rozwoju Regionalnego, Europejskiego Funduszu Społecznego Plus, Funduszu Spójności, Funduszu na rzecz Sprawiedliwej Transformacji i Europejskiego Funduszu Morskiego, Rybackiego i Akwakultury, a także przepisy finansowe na potrzeby tych funduszy oraz na potrzeby Funduszu Azylu, Migracji i Integracji, Funduszu Bezpieczeństwa Wewnętrznego i Instrumentu Wsparcia Finansowego na rzecz Zarządzania Granicami i Polityki Wizowej). \nZasada DNSH dotyczy niewspierania ani nieprowadzenia działalności gospodarczej, która powoduje znaczące szkody dla któregokolwiek z celów środowiskowych określonych w art. 17 Rozporządzenia Parlamentu Europejskiego i Rady (UE) 2020/852 z dnia 18 czerwca 2020 r. w sprawie ustanowienia ram ułatwiających zrównoważone inwestycje, zmieniającego rozporządzenie (UE) 2019/2088 (Tekst mający znaczenie dla EOG), dalej rozporządzenie o taksonomii.\nProjekt podlega ocenie względem sześciu poniżej wskazanych celów środowiskowych. Należy wybrać odpowiedź TAK/NIE/NIE DOTYCZY w każdym z poniższych pytań oraz uzasadnić odpowiedź w polu opisowym, zgodnie z poniższymi instrukcjami. Aby można było uznać że projekt jest zgodny z zasadą DNSH nie może powodować znaczących szkód względem 6 celów środowiskowych wymienionych poniżej. Przy ocenie należy uwzględnić zarówno skutki środowiskowe samej działalności której dotyczy przedsięwzięcie, jak również wpływ, jaki na środowisko mają produkty dostarczane i usługi świadczone w ramach tej działalności przez cały cykl ich życia, szczególnie z uwzględnieniem wytwarzania, użytkowania i zakończenia cyklu życia tych produktów i usług."]
["Cel 1: Łagodzenie zmian klimatu: Czy projekt doprowadzi do znacznych emisji gazów cieplarnianych?"]
[]
["Zgodnie z art. 17 ust. 1 lit. a) rozporządzenia o taksonomii, jeżeli projekt prowadzi do znacznych emisji gazów cieplarnianych to wyrządza poważne szkody dla środowiska i jest niezgodny z zasadą DNSH. W przypadku wskazania odpowiedzi \"NIE\" należy opisać w poniższym polu, w jaki sposób realizacja projektu przyczynia się do realizacji celów polityki ochrony środowiska oraz w jaki sposób wpisuje się w cele klimatyczne określone w Strategii Europejski Zielony Ład, Prawie Klimatycznym, Pakiecie energetyczno - klimatycznym, Krajowym Planie na Rzecz Energii i Klimatu na lata 2021-2030, w cel dążenia do neutralności klimatycznej do roku 2050. W przypadku udzielania odpowiedzi TAK projekt nie może kwalifikować się do wsparcia."]
[]
["Cel 2: Adaptacja do zmian klimatu: Czy projekt doprowadzi do zwiększonego niekorzystnego wpływu obecnego i spodziewanego przyszłego klimatu na samo działanie lub na ludność, przyrodę lub aktywa?"]
[]
["Zgodnie z art. 17 ust. 1 lit. b) rozporządzenia o taksonomii, jeżeli działalność prowadzi do nasilenia niekorzystnych skutków obecnych i oczekiwanych, dla przyszłych warunków klimatycznych, wywieranych na tę działalność lub na ludzi, przyrodę lub aktywa to wpływa znacząco na środowisko i jest niezgodny z zasadą DNSH.\nW przypadku wskazania odpowiedzi \"NIE\" należy opisać w poniższym polu:\n- w jaki sposób uwzględniono zagrożenia związane ze zmianami klimatu (np. obciążenia śniegiem, wiatrem, różnicy temperatur i odziaływania np. fali upałów, zagrożenia powodziowego, suszy), \n- w jaki sposób uwzględniono kwestie dotyczące przystosowania się do zmian klimatu i ich łagodzenia oraz odporności na klęski żywiołowe,\n- czy w trakcie przygotowywania projektu przeprowadzono ocenę zagrożeń wynikających ze zmian klimatycznych lub kontrolę podatności (ocenę ryzyka związanego prognozowanymi zmianami klimat lub analizę podatności),\n- w jaki sposób projekt odnosi się do strategii krajowej lub regionalnej w zakresie przystosowania się do zmian klimatu,\n- czy projekt w połączeniu ze zmianami klimatu będzie miał jakikolwiek pozytywny lub negatywny wpływ na otoczenie,\n- czy zmiany klimatu wpłynęły na wybór lokalizacji projektu.\nW przypadku udzielania odpowiedzi \"TAK\" projekt nie może kwalifikować się do wsparcia."]
[]
["Cel 3: Zrównoważone wykorzystywanie i ochrona zasobów wodnych i morskich: Czy projekt obejmuje zmiany charakterystyki fizycznej lub chemicznej części wód powierzchniowych, wód gruntowych lub zmiany poziomu części wód podziemnych, które pogarszają stan jednolitej części wód lub uniemożliwiają osiągnięcie dobrego stanu wód w tym stanu wód morskich? "]
[]
["Cele dla osiągnięcia dobrego stanu ekologicznego i chemicznego wód powierzchniowych, jak również dobrego stanu chemicznego i ilościowego wód podziemnych wyznacza Dyrektywa 2000/60/WE Parlamentu Europejskiego i Rady z dnia 23 października 2000 r. ustanawiająca ramy wspólnotowego działania w dziedzinie polityki wodnej (Ramowa dyrektywa wodna). Osiągnięcie celów ww. Dyrektywy wspierane jest poprzez opracowanie niezbędnych dokumentów planistycznych, jakimi są Plany gospodarowania wodami na obszarach dorzeczy oraz Program wodnośrodowiskowy kraju, w tym w oparciu o Ustawę z dnia 20 lipca 2017 r. Prawo wodne. Zgodnie z art. 17 ust. 1 lit. c) rozporządzenia o taksonomii, jeżeli projekt będzie zagrażał dobremu stanowi lub dobremu potencjałowi ekologicznemu jednolitych części wód, w tym wód powierzchniowych i wód gruntowych lub dobremu stanowi środowiska wód morskich to wpływa znacząco na środowisko i jest niezgodny z zasadą DNSH. Dotyczy projektów infrastrukturalnych, które z racji swojego charakteru i zakresu mogą oddziaływać na określoną jednolitą część wód. W pozostałych przypadkach można uznać neutralny charakter projektu i wówczas należy wybrać opcję \"NIE DOTYCZY\".\nW przypadku projektów infrastrukturalnych, które z racji swojego charakteru i zakresu mogą oddziaływać na określoną jednolitą część wód i wskazania odpowiedzi \"NIE\", wnioskodawca będzie zobligowany na wezwanie LAWP do przedstawienia deklaracji zgodności właściwego organu w sprawach ocen wodnoprawnych, że projekt nie pogarsza stanu jednolitego części wód lub ich dobrego potencjału.\nW przypadku projektów infrastrukturalnych, które z racji swojego charakteru i zakresu mogą oddziaływać na określoną jednolitą część wód i wskazania odpowiedzi „TAK” (tj. inwestycji lub działań mogących wpłynąć na możliwość osiągnięcia celów środowiskowych, o których mowa w art. 56, art. 57, art. 59 oraz w art. 61 Prawa wodnego, dotyczy np. takich działań jak budowle piętrzące, falochrony, duży pobór wody), wnioskodawca będzie zobligowany na wezwanie LAWP do przedstawienia oceny wodnoprawnej, o której mowa w art. 430, art. 431 i art. 434 ust. 1 ustawy z dnia 20 lipca 2017 r. Prawo wodne, wydanej w drodze decyzji, przez organ właściwy w sprawach ocen wodnoprawnych, potwierdzającej zgodność inwestycji lub działań z celami środowiskowymi lub przedłożenia decyzji o środowiskowych uwarunkowaniach, w treści której znajdą się wnioski z przeprowadzonej analizy oddziaływania inwestycji na jednolite części wód (jeżeli taka decyzja została wydana)."]
[]
["Cel 4: Gospodarka o obiegu zamkniętym, w tym zapobieganie powstawaniu odpadów i recykling: Czy projekt prowadzi do znacznego zwiększenia wytwarzania, spalania lub unieszkodliwiania odpadów (z wyjątkiem spalania odpadów niebezpiecznych nienadających się do recyklingu) lub doprowadzi do znaczącej nieefektywności w zakresie bezpośredniego lub pośredniego korzystania z jakiegokolwiek zasobu naturalnego na dowolnym etapie jego cyklu życia, która nie zostanie ograniczona do minimum za pomocą odpowiednich środków lub długotrwałego składowania odpadów, prowadzącego do wyrządzenia poważnych i długoterminowych szkód dla środowiska?"]
[]
["Zgodnie z art. 17 ust. 1 lit. d) rozporządzenia o taksonomii, jeżeli projekt prowadzi do znacznego zwiększenia wytwarzania, spalania lub unieszkodliwiania odpadów (z wyjątkiem spalania odpadów niebezpiecznych nienadających się do recyklingu) lub doprowadzi do znaczącego braku efektywności w wykorzystywaniu materiałów lub w bezpośrednim lub pośrednim wykorzystywaniu zasobów naturalnych, takich jak nieodnawialne źródła energii, surowce, woda i grunty, na co najmniej jednym z etapów cyklu życia produktów, w tym pod względem trwałości produktów, a także możliwości ich naprawy, ulepszenia, ponownego użycia lub recyklingu lub długotrwałego składowania odpadów, prowadzącego do wyrządzenia poważnych i długoterminowych szkód dla środowiska to wpływa znacząco na środowisko i jest niezgodny z zasadą DNSH.\nW przypadku wybrania odpowiedzi \"NIE\" należy opisać, w jaki sposób realizacja projektu wpływa na zapobieganie powstawaniu odpadów oraz ich ponowne użycie i recykling, np. czy została uwzględniona hierarchia sposobów postępowania z odpadami (od zapobiegania powstawaniu odpadów, poprzez selektywne zbieranie, przygotowanie do ponownego użytku, recykling, inne procesy odzysku do unieszkodliwiania). W przypadku udzielania odpowiedzi \"TAK\" projekt nie może kwalifikować się do wsparcia."]
[]
["Cel 5: Zapobieganie zanieczyszczeniom powietrza, wody lub gleby i jego kontrola: Czy projekt doprowadzi do istotnego zwiększenia poziomu emisji zanieczyszczeń do powietrza, wody lub gleby?"]
[]
["Zgodnie z art. 17 ust. 1 lit. e) rozporządzenia o taksonomii, jeżeli projekt prowadzi do znaczącego wzrostu emisji zanieczyszczeń do powietrza, wody lub ziemi w porównaniu z sytuacją sprzed rozpoczęcia realizacji projektu to wpływa znacząco na środowisko i jest niezgodny z zasadą DNSH.\nW przypadku odpowiedzi \"NIE\" należy w polu opisowym wykazać aspekty projektu, które wpływają na brak zwiększenia poziomu emisji zanieczyszczeń, w tym np. działania dążące do poprawy jakości powietrza, wody lub gleby na obszarach, na których prowadzona jest dana działalność gospodarcza, przy jednoczesnym minimalizowaniu i zapobieganiu wszelkich niekorzystnych skutków lub zagrożeń dla zdrowia ludzi dla środowiska wynikających z produkcji, stosowania lub unieszkodliwiania chemikaliów lub minimalizowania takich niekorzystnych skutków. \nDodatkowo w przypadku, gdy działalność wnioskodawcy ma wpływ na środowisko należy dodatkowo opisać w jaki sposób w projekcie została uwzględniona zasada \"zanieczyszczający płaci\", według której sprawcy szkód w środowisku powinni ponosić pełne koszty tych działań, które są niezbędne dla usunięcia zanieczyszczenia lub koszty równoważnych działań umożliwiających osiągnięcie celów ochrony środowiska.\nW przypadku udzielania odpowiedzi \"TAK\" projekt nie może kwalifikować się do wsparcia."]
[]
["Cel 6: Ochrona i odbudowa bioróżnorodności i ekosystemów: Czy projekt  będzie w znacznym stopniu szkodliwy dla dobrego stanu i odporności ekosystemów lub będzie szkodliwy dla stanu zachowania siedlisk i gatunków w tym siedlisk i gatunków objętych zakresem zainteresowania Unii?"]
[]
["Zgodnie z art. 17 ust. 1 lit. f) rozporządzenia o taksonomii przedsięwzięcie, które będzie w znacznym stopniu szkodliwe dla dobrego stanu i odporności ekosystemów lub będzie szkodliwe dla stanu zachowania siedlisk i gatunków, w tym siedlisk i gatunków objętych zakresem zainteresowania Unii wpływa znacząco na środowisko i jest niezgodne z zasadą DNSH. W przypadku projektów, które nie obejmują robót budowlanych (nie zależnie czy wnioskodawca ponosi bezpośrednie nakłady na roboty czy ponosi je podmiot trzeci, a wnioskodawca nabywa wyłącznie środki trwałe, będący efektem tych robót) należy wybrać opcję \"NIE DOTYCZY\".\nW przypadku projektów, których realizacja wymaga przeprowadzenia robót budowlanych, gdy nie istniało lub nie istnieje prawdopodobieństwo, że projekt może znacząco oddziaływać na obszary Natura 2000, należy wybrać opcję \"NIE\". W takim przypadku wnioskodawca zobligowany jest do przedłożenia Deklaracji organu odpowiedzialnego za monitorowanie obszarów Natura2000.\nW przypadku projektów, których realizacja wymaga przeprowadzenia robót budowlanych, jeżeli wybrano odpowiedz \"TAK\" wnioskodawca będzie zobligowany na wezwanie LAWP do przedstawienia:\na) decyzji administracyjnej, w przypadku której prowadzi się postępowanie w sprawie oceny oddziaływania na obszar Natura 2000 (dla przedsięwzięć mogących wpływać na obszar Natura 2000);\nb) postanowienia RDOŚ uzgadniającego decyzję, w przypadku której prowadzi się postępowanie w sprawie oceny oddziaływania na obszar Natura 2000 (dla przedsięwzięć mogących wpływać na obszar Natura 2000);\nc) formularza „Informacja na temat projektów, które mogą wywierać istotny negatywny wpływ na obszary NATURA 2000, zgłoszone Komisji na mocy dyrektywy 92/43/EWG” wraz z niezbędnymi opiniami, jeżeli organ, który wydał zgodę na realizację przedsięwzięcia, stwierdził występowanie negatywnego oddziaływania na obszar Natura 2000."]
[]
["Sekcja II Stosowanie Dyrektywy OOŚ"]
["W poniższych polach należy wskazać czy projekt dotyczy rodzaju przedsięwzięcia objętego Załącznikiem I lub Załącznikiem II do Dyrektywy Parlamentu Europejskiego i Rady 2011/92/UE w sprawie oceny skutków wywieranych na niektóre przedsięwzięcia publiczne i prywatne na środowisko, dalej dyrektywa OOŚ oraz czy wzięto pod uwagę ocenę rozwiązań alternatywnych na podstawie wymogów dyrektywy OOŚ z uwzględnieniem Wytycznych w sprawie działań naprawczych w odniesieniu do projektów współfinansowanych w okresie programowania 2014-2020 oraz ubiegających się o współfinansowanie w okresie 2021-2027 z Funduszy UE, dotkniętych naruszeniem 2016/2046 w zakresie specustaw, dla których prowadzone jest postępowanie w sprawie oceny oddziaływania na środowisko (sygn. Ares(2021)1423319)."]
["Czy projekt objęty jest załącznikiem I do dyrektywy OOŚ?                                                                                                              "]
[]
["Czy projekt objęty jest załącznikiem II do dyrektywy OOŚ?"]
[]
["Czy przeprowadzono ocenę oddziaływania na środowisko?"]
[]
["Jeżeli powyżej wybrano, że projekt jest objęty I lub II aneksem dyrektywy OOŚ wnioskodawca zobligowany będzie na wezwanie LAWP do przedstawienia dokumentów potwierdzających przeprowadzenie procedury OOŚ."]
["Sekcja III Zgodność projektu z zasadami zrównoważonego rozwoju"]
["W poniższych polach należy udzielić odpowiedzi, czy projekt będzie realizowany zgodnie z zasadą zrównoważonego rozwoju, o której mowa w art. 9 ust. 4 Rozporządzenia Parlamentu Europejskiego i Rady 2021/1060 tj. cele Funduszy są realizowane zgodnie z celem wspierania zrównoważonego rozwoju, określonym w art. 11 TFUE, oraz z uwzględnieniem celów ONZ dotyczących zrównoważonego rozwoju, a także porozumienia paryskiego i zasady „nie czyń poważnych szkód” oraz ustawą z dnia 27 kwietnia 2001 r. Prawo ochrony środowiska, określającą zasady ochrony środowiska oraz warunki korzystania z jego zasobów. Należy wskazać, jakie działania zostaną podjęte w ramach projektu w celu spełnienia przynajmniej dwóch z niżej wskazanych zasad (6R) lub wskazać czy projekt wywiera pozytywny wpływ na inne aspekty środowiskowe, które nie są objęte poniższymi zasadami (6R). "]
["1. Czy w projekcie uwzględniono działania zgodne z zasadą zrównoważonego rozwoju - Refuse (odmów)? \nCelem tej zasady jest zmniejszenie ilości odpadów, zużycia surowców i emisji zanieczyszczeń poprzez unikanie produkcji i konsumpcji niepotrzebnych rzeczy oraz unikanie wszelkich działań, produktów i usług, które są nieodpowiednie lub szkodliwe dla środowiska. Zasada ta polegać może np. na rezygnacji z użycia materiałów i innych produktów, które nie nadają się do ponownego użycia.  "]
[]
["Jeżeli w pytaniu powyżej wybrano opcję TAK, w wierszu poniżej należy opisać jakie działania zostaną podjęte oraz w jaki sposób wnioskodawca będzie monitorował spełnienie założeń."]
[]
["2. Czy w projekcie uwzględniono działania zgodne z zasadą zrównoważonego rozwoju - Reduce (ogranicz)? \nCelem tej zasady jest zminimalizowanie negatywnego wpływu na środowisko i ograniczenie marnowania surowców. Zasada ta polegać może np. na zmniejszaniu zużycia zasobów, materiałów i substancji poprzez zastosowanie odpowiednich działań, np. technologicznych, poprzez wybór produktów i usług, które są bardziej wydajne i zużywają mniej surowców i energii, a także poprzez zmianę nawyków i stylów życia, które wprowadzają bardziej oszczędne i zrównoważone podejście do konsumpcji."]
[]
["Jeżeli w pytaniu powyżej wybrano opcję TAK, w wierszu poniżej należy opisać jakie działania zostaną podjęte oraz w jaki sposób wnioskodawca będzie monitorował spełnienie założeń."]
[]
["3. Czy w projekcie uwzględniono działania zgodne z zasadą zrównoważonego rozwoju - Reuse (użyj ponownie)? \nCelem tej zasady jest zwiększenie wydajności i zmniejszenie zużycia surowców, a także zmniejszenie ilości odpadów i zanieczyszczeń. Zasada ta polegać może np. ponownym użyciu produktów, ponownym wykorzystaniu opakowań, renowację i naprawianie produktów, a także stosowanie produktów wielokrotnego użytku, takich jak butelki na wodę i torby na zakupy."]
[]
["Jeżeli w pytaniu powyżej wybrano opcję TAK, w wierszu poniżej należy opisać jakie działania zostaną podjęte oraz w jaki sposób wnioskodawca będzie monitorował spełnienie założeń."]
[]
["4. Czy w projekcie uwzględniono działania zgodne z zasadą zrównoważonego rozwoju - Recover (napraw)? \nCelem tej zasady jest zmniejszenie ilości odpadów i zapotrzebowania na surowce pierwotne. Zasada ta polegać może np. na wprowadzaniu rozwiązań umożliwiających naprawę i ponowne użycie produktów, które można ponownie wykorzystać w procesie produkcji a także odzysk energii z biogazu, odpadów."]
[]
["Jeżeli w pytaniu powyżej wybrano opcję TAK, w wierszu poniżej należy opisać jakie działania zostaną podjęte oraz w jaki sposób wnioskodawca będzie monitorował spełnienie założeń.\nJeżeli wybrano opcję NIE wiersz poniżej może pozostać niewypełniony."]
[]
["5. Czy w projekcie uwzględniono działania zgodne z zasadą zrównoważonego rozwoju - Recycle (recyklinguj)? \nCelem tej zasady jest zmniejszenie ilości odpadów, które trafiają do składowisk, a także zmniejszenie zapotrzebowania na surowce pierwotne. Zasada ta polegać może np. na ponownym wykorzystaniu surowców i produktów, w celu zmniejszenia ich negatywnego wpływu na środowisko."]
[]
["Jeżeli w pytaniu powyżej wybrano opcję TAK, w wierszu poniżej należy opisać jakie działania zostaną podjęte oraz w jaki sposób wnioskodawca będzie monitorował spełnienie założeń."]
[]
["6. Czy w projekcie uwzględniono działania zgodne z zasadą zrównoważonego rozwoju - Rethink (ulepsz)? \nCelem tej zasady jest zmiana sposobu myślenia i działania, aby zapobiegać powstawaniu odpadów, poprzez zmianę projektów, produktów i procesów, tak aby były one bardziej efektywne i przyjazne dla środowiska. Zasada ta polegać może np. na zmniejszaniu zużycia zasobów, materiałów i substancji poprzez zastosowanie odpowiednich działań, np. technologicznych."]
[]
["Jeżeli w pytaniu powyżej wybrano opcję TAK, w wierszu poniżej należy opisać jakie działania zostaną podjęte oraz w jaki sposób wnioskodawca będzie monitorował spełnienie założeń."]
[]
["7. Czy w projekcie uwzględniono inne działania mające pozytywny wpływ na środowisko, nie wymienione wyżej?"]
[]
["Jeżeli w pytaniu powyżej wybrano opcję TAK, w wierszu poniżej należy opisać jakie działania zostaną podjęte oraz w jaki sposób wnioskodawca będzie monitorował spełnienie założeń."]
[]
["Sekcja IV Uodparnianie na zmiany klimatu inwestycji."]
["W przypadku inwestycji w infrastrukturę o przewidywanej trwałości wynoszącej co najmniej 5 lat, należy opisać w polu tekstowym poniżej, w jaki sposób wnioskodawca w ramach projektu zapewni uodparnianie na zmiany klimatu, co oznacza działania mające na celu zapobieganie podatności infrastruktury na potencjalne długoterminowe skutki zmian klimatu, przy jednoczesnym zapewnieniu przestrzegania zasady „efektywności energetycznej przede wszystkim” oraz zgodności poziomu emisji gazów cieplarnianych wynikających z projektu, z celem osiągnięcia neutralności klimatycznej w 2050 r. Jeżeli projekt nie dotyczy inwestycji w infrastrukturę o przewidywanej trwałości co najmniej 5 lat, należy w wierszu poniżej, wpisać \"nie dotyczy\"."]

{"sheet":"Doświadczenie","index":11,"n_rows":18,"n_cols":4,"rows_kept":18,"cut":false,"hidden":false,"merged":[]}
["1. Doświadczenie wnioskodawcy","2. Doświadczenie wnioskodawcy","2. Doświadczenie wnioskodawcy2","3. Doświadczenie wnioskodawcy"]
["W polu poniżej należy opisać doświadczenie wnioskodawcy w zakresie świadczenia usług doradztwa prorozwojowego na rzecz przedsiębiorstw sektora MŚP, posiadających siedzibę/oddział/miejsce prowadzenia działalności na terenie województwa lubelskiego.\nZa usługi doradztwa prorozwojowego nie uznaje się działań o charakterze szkoleniowym, technicznym ani bieżącego wsparcia administracyjnego lub księgowego. \n\nOpis powinien zawierać następujące elementy:\n1. Okres świadczenia usług doradztwa prorozwojowego:\na) Podaj dokładną datę rozpoczęcia i zakończenia (lub trwania) świadczenia usług doradztwa prorozwojowego.\nb) Wykazywane doświadczenie musi dotyczyć usług świadczonych w roku złożenia wniosku o dofinansowanie oraz w okresie dwóch lat poprzedzających złożenie wniosku o dofinasowanie.\n2. Rodzaje świadczonych usług doradztwa prorozwojowego:\na) Opisz, jakie usługi były świadczone w ramach doradztwa prorozwojowego, w szczególności:\n- czy były to usługi o charakterze eksperckim i doradczym, \n- czy usługi były świadczone na rzecz przedsiębiorstw posiadających siedzibę/oddział/miejsce prowadzenia działalności na terenie województwa lubelskiego,\n- czy były ukierunkowane na wspieranie rozwoju gospodarczego przedsiębiorstw, w szczególności poprzez zwiększanie konkurencyjności, innowacyjności, efektywności funkcjonowania lub potencjału rynkowego, w tym ekspansji na nowe rynki.\n3. Liczba i profil obsłużonych przedsiębiorstw\na) Wskaż liczbę (min. 5) MŚP z województwa lubelskiego, które skorzystały z usług doradztwa prorozwojowego.\nb) Opisz krótko profil wspartych MŚP (np. branże, etap rozwoju, skala działalności).\n\nW celu potwierdzenia powyższego doświadczenia, do wniosku o dofiansowanie należy załączyć kopie umów, protokoły odbioru lub inne dokumenty jednoznacznie potwierdzające wykonanie usług.\n"]
[]
["2. Doświadczenie wnioskodawcy w udzielaniu pomocy de minimis","Kolumna1",null,"Kolumna2"]
["W wierszu poniżej należy opisać, czy w okresie od 2014 roku udzielił pomocy de minimis co najmniej pięciu MŚP."]
[]
["3. Współpraca ponadregionalna, transgraniczna i ponadnarodowa"]
["W tabeli należy wskazać, czy wnioskodawca w okresie nie dłuższym niż 24 miesiące przed dniem złożenia wniosku o dofinansowanie prowadził działalność gospodarczą obejmującą sprzedaż produktów lub usług na rynkach międzyregionalnych, transgranicznych i/lub transnarodowych.\n\nWspółpraca międzyregionalna oznacza współpracę z podmiotami z innych województw.\nWspółpraca transgraniczna oznacza współpracę wnioskodawcy z podmiotami z obszarów przygranicznych Rzeczypospolitej Polskiej, bezpośrednio przylegających do granicy województwa lubelskiego (tj. przygranicznych obszarów Ukrainy lub Białorusi).\nWspółpraca transnarodowa oznacza współpracę z podmiotami zagranicznymi (z wyłączeniem obszarów transgranicznych).\n\nZa współpracę międzyregionalną, transgraniczną lub transnarodową nie uznaje się współpracy z osobami lub podmiotami wpisanymi na listę osób i podmiotów, wobec których stosowane są środki określone w art. 1 ustawy z dnia 13 kwietnia 2022 r. o szczególnych rozwiązaniach w zakresie przeciwdziałania wspieraniu agresji na Ukrainę oraz służących ochronie bezpieczeństwa narodowego, prowadzonej w okresie obowiązywania tych środków. \n\nWykazana współpraca musi zostać udokumentowana poprzez przedłożenie dokumentów potwierdzających posiadane doświadczenie lub realizację działań w danym obszarze współpracy.\n\nW wierszu poniżej należy wybrać odpowiedź „TAK” lub „NIE” w odniesieniu do każdego stwierdzenia:"]
["Wnioskodawca posiada doświadczenie i/lub jest zaangażowany w prowadzone działania współpracy o zasięgu międzyregionalnym "]
[]
["Wnioskodawca posiada doświadczenie i/lub jest zaangażowany w prowadzone działania współpracy o zasięgu transgranicznym"]
[]
["Wnioskodawca posiada doświadczenie i/lub jest zaangażowany w prowadzone działania współpracy o zasięgu transnarodowym (z wyłączeniem obszarów transgranicznych)"]
[]
["4. Miejsce odprowadzania podatku dochodowego."]
["W wierszu poniżej należy wskazać, czy Urząd Skarbowy, do którego wnioskodawca odprowadza podatek dochodowy znajduje się na terenie województwa lubelskiego."]
[]
["Jeżeli w pytaniu powyżej wybrano opcję TAK, to poniżej należy wpisać adres Urzędu Skarbowego, do którego wnioskodawca odprowadza podatek dochodowy. W przypadku gdy wybrano opcję NIE i z obowiązujących przepisów prawa wynika, że wnioskodawca posiadający główną siedzibę w województwie lubelskim jest obsługiwany przez wyspecjalizowany Urząd Skarbowy o zasięgu krajowym należy w wierszu poniżej złożyć wyjaśnienie w tym zakresie. W innym przypadku należy wpisać NIE DOTYCZY."]

{"sheet":"Grupa docelowa","index":12,"n_rows":635,"n_cols":1,"rows_kept":635,"cut":false,"hidden":false,"merged":[]}
["1. Kwalifikowalność grupy docelowej"]
["W polu poniżej należy zadeklarować, że grupę docelową usług planowanych do realizacji w ramach projektu będą stanowiły przedsiębiorstwa z sektora MŚP posiadające siedzibę, oddział lub miejsce prowadzenia działalności na terenie województwa lubelskiego, które nie korzystały ze wsparcia niefinansowego w zakresie wyjazdów zagranicznych w ramach projektu „Marketing Gospodarczy Województwa Lubelskiego III”, realizowanego w ramach Programu Fundusze Europejskie dla Lubelskiego 2021–2027 (FEL 2021–2027).\nPrzez wsparcie niefinansowe w zakresie wyjazdów zagranicznych rozumie się udział przedsiębiorstw w zagranicznych misjach gospodarczych, targach, wystawach lub innych wydarzeniach o charakterze międzynarodowym, organizowany w ramach projektu „Marketing Gospodarczy Województwa Lubelskiego III” realizowanego w ramach FEL 2021–2027, obejmujący wsparcie organizacyjne, logistyczne oraz promocyjne.\n\n\n"]
["d"]
["W polu poniżej należy zadeklarować, że wybór ostatecznych odbiorców/uczestników projektu zostanie zapewniony w sposób przejrzysty i nie prowadzący do powstania konfliktu interesów."]
["d"]
["W polu poniżej należy zadeklarować, że odbiorcami lub uczestnikami projektu będą wyłącznie podmioty, których profil działalności jest zgodny z tematyką i zakresem misji gospodarczych, targów, wystaw lub innych wydarzeń o charakterze międzynarodowym."]
["d"]
["W polu poniżej należy zadeklarować, że w procesie rekrutacji MŚP do udziału w projekcie wnioskodawca będzie wymagał, aby przedmiotem promocji i internacjonalizacji były wyłącznie produkty wytwarzane na terenie województwa lubelskiego lub usługi świadczone przez osoby, których miejsce świadczenia pracy znajduje się na terenie województwa lubelskiego. "]
["d"]
["2. Wejścia na nowe rynki"]
["W wierszu poniżej należy wskazać liczbę przedsiębiorstw (co najmniej 30), które zostaną objęte wsparciem niefinansowym w zakresie pomocy i internacjonalizacji produktów i usług:"]
[]
["W wierszu poniżej należy wskazać liczbę przedsiębiorstw, które spośród wszystkich przedsiębiorstw objętych wsparciem rozpoczną sprzedaż produktów lub usług na nowym rynku zagranicznym, na którym do tej pory nie prowadziły sprzedaży. \nW kolejnym wierszu procent (%) zostanie wyliczony automatycznie. W wyniku realizacji projektu co najmniej 40% MŚP objętych wsparciem musi rozpocząć sprzedaż produktów lub usług na nowym rynku zagranicznym, na którym wcześniej nie prowadziło sprzedaży."]
[]
[{"$f":"A14/A12","v":{"$error":"#DIV/0!"}}]
[]
[]
[]
[]
[]
[]
[]
[]
[]
[]
[]
[]
[]
[]
[]
[]
[]
[]
[]
[]
[]
[]
[]
[]
[]
[]
[]
[]
[]
[]
[]
[]
[]
[]
[]
[]
[]
[]
[]
[]
[]
[]
[]
[]
[]
[]
[]
[]
[]
[]
[]
[]
[]
[]
[]
[]
[]
[]
[]
[]
[]
[]
[]
[]
[]
[]
[]
[]
[]
[]
[]
[]
[]
[]
[]
[]
[]
[]
[]
[]
[]
[]
[]
[]
[]
[]
[]
[]
[]
[]
[]
[]
[]
[]
[]
[]
[]
[]
[]
[]
[]
[]
[]
[]
[]
[]
[]
[]
[]
[]
[]
[]
[]
[]
[]
[]
[]
[]
[]
[]
[1]
[2]
[3]
[4]
[5]
[6]
[7]
[8]
[9]
[10]
[11]
[12]
[13]
[14]
[15]
[16]
[17]
[18]
[19]
[20]
[21]
[22]
[23]
[24]
[25]
[26]
[27]
[28]
[29]
[30]
[31]
[32]
[33]
[34]
[35]
[36]
[37]
[38]
[39]
[40]
[41]
[42]
[43]
[44]
[45]
[46]
[47]
[48]
[49]
[50]
[51]
[52]
[53]
[54]
[55]
[56]
[57]
[58]
[59]
[60]
[61]
[62]
[63]
[64]
[65]
[66]
[67]
[68]
[69]
[70]
[71]
[72]
[73]
[74]
[75]
[76]
[77]
[78]
[79]
[80]
[81]
[82]
[83]
[84]
[85]
[86]
[87]
[88]
[89]
[90]
[91]
[92]
[93]
[94]
[95]
[96]
[97]
[98]
[99]
[100]
[101]
[102]
[103]
[104]
[105]
[106]
[107]
[108]
[109]
[110]
[111]
[112]
[113]
[114]
[115]
[116]
[117]
[118]
[119]
[120]
[121]
[122]
[123]
[124]
[125]
[126]
[127]
[128]
[129]
[130]
[131]
[132]
[133]
[134]
[135]
[136]
[137]
[138]
[139]
[140]
[141]
[142]
[143]
[144]
[145]
[146]
[147]
[148]
[149]
[150]
[151]
[152]
[153]
[154]
[155]
[156]
[157]
[158]
[159]
[160]
[161]
[162]
[163]
[164]
[165]
[166]
[167]
[168]
[169]
[170]
[171]
[172]
[173]
[174]
[175]
[176]
[177]
[178]
[179]
[180]
[181]
[182]
[183]
[184]
[185]
[186]
[187]
[188]
[189]
[190]
[191]
[192]
[193]
[194]
[195]
[196]
[197]
[198]
[199]
[200]
[201]
[202]
[203]
[204]
[205]
[206]
[207]
[208]
[209]
[210]
[211]
[212]
[213]
[214]
[215]
[216]
[217]
[218]
[219]
[220]
[221]
[222]
[223]
[224]
[225]
[226]
[227]
[228]
[229]
[230]
[231]
[232]
[233]
[234]
[235]
[236]
[237]
[238]
[239]
[240]
[241]
[242]
[243]
[244]
[245]
[246]
[247]
[248]
[249]
[250]
[251]
[252]
[253]
[254]
[255]
[256]
[257]
[258]
[259]
[260]
[261]
[262]
[263]
[264]
[265]
[266]
[267]
[268]
[269]
[270]
[271]
[272]
[273]
[274]
[275]
[276]
[277]
[278]
[279]
[280]
[281]
[282]
[283]
[284]
[285]
[286]
[287]
[288]
[289]
[290]
[291]
[292]
[293]
[294]
[295]
[296]
[297]
[298]
[299]
[300]
[301]
[302]
[303]
[304]
[305]
[306]
[307]
[308]
[309]
[310]
[311]
[312]
[313]
[314]
[315]
[316]
[317]
[318]
[319]
[320]
[321]
[322]
[323]
[324]
[325]
[326]
[327]
[328]
[329]
[330]
[331]
[332]
[333]
[334]
[335]
[336]
[337]
[338]
[339]
[340]
[341]
[342]
[343]
[344]
[345]
[346]
[347]
[348]
[349]
[350]
[351]
[352]
[353]
[354]
[355]
[356]
[357]
[358]
[359]
[360]
[361]
[362]
[363]
[364]
[365]
[366]
[367]
[368]
[369]
[370]
[371]
[372]
[373]
[374]
[375]
[376]
[377]
[378]
[379]
[380]
[381]
[382]
[383]
[384]
[385]
[386]
[387]
[388]
[389]
[390]
[391]
[392]
[393]
[394]
[395]
[396]
[397]
[398]
[399]
[400]
[401]
[402]
[403]
[404]
[405]
[406]
[407]
[408]
[409]
[410]
[411]
[412]
[413]
[414]
[415]
[416]
[417]
[418]
[419]
[420]
[421]
[422]
[423]
[424]
[425]
[426]
[427]
[428]
[429]
[430]
[431]
[432]
[433]
[434]
[435]
[436]
[437]
[438]
[439]
[440]
[441]
[442]
[443]
[444]
[445]
[446]
[447]
[448]
[449]
[450]
[451]
[452]
[453]
[454]
[455]
[456]
[457]
[458]
[459]
[460]
[461]
[462]
[463]
[464]
[465]
[466]
[467]
[468]
[469]
[470]
[471]
[472]
[473]
[474]
[475]
[476]
[477]
[478]
[479]
[480]
[481]
[482]
[483]
[484]
[485]
[486]
[487]
[488]
[489]
[490]
[491]
[492]
[493]
[494]
[495]
[496]
[497]
[498]
[499]
[500]

{"sheet":"RSI i wysoka technika","index":13,"n_rows":38,"n_cols":1,"rows_kept":38,"cut":false,"hidden":false,"merged":[]}
["Dodatkowe premie wnioskodawcy dla MŚP, których produkt/usługa będzie przedmiotem internacjonalizacji"]
["Regionalne Inteligentne Specjalizacje "]
["W polu poniżej należy zadeklarować, czy wnioskodawca przy realizacji działań w zakresie promocji oferty MŚP i ich internacjonalizacji będzie premiował przedsiębiorców, których produkt/usługa będące przedmiotem internacjonalizacji wpisują się w obszary inteligentnych specjalizacji województwa lubelskiego, wskazanych w „Regionalnej Strategii Innowacji Województwa Lubelskiego do 2030 r.”, tj.: \n• Żywność wysokiej jakości, \n• Zielona gospodarka, \n• Zdrowe społeczeństwo, \n• Cyfrowe społeczeństwo, \n• Technologie materiałowe, procesy produkcyjne i logistyczne. "]
[]
["Produkty i usługi wysokiej techniki"]
["W polu poniżej należy zadeklarować, czy wnioskodawca przy realizacji działań w zakresie promocji oferty MŚP i ich internacjonalizacji będzie premiował przedsiębiorców, których produkt/usługa będące przedmiotem internacjonalizacji wpisują się w wysoką technikę. \nOcena dokonywana będzie w oparciu o listę OECD według Międzynarodowej Standardowej Klasyfikacji Handlu (SITC Rev. 4) oraz klasyfikację działalności przemysłowej i usług według intensywności B+R (PKD 2007), określone w aneksach VI i VII do publikacji „Nauka i technika w 2024 r.” GUS, Warszawa, Szczecin 2022, dostępnej na stronie: https://new.stat.gov.pl/portal-publikacje/nauka-i-technika-w-2024-r  "]
[]
[]
[]
[]
[]
[]
[]
[]
[]
[]
[]
[]
[]
[]
[]
[]
[]
[]
[]
[]
[]
[]
[]
[]
[]
[]
[]
[]
["tak, do udziału w projekcie premiowani będą przedsiębiorcy, których produkt/usługa będące przedmiotem internacjonalizacji wpisują się w inteligentne specjalizacje województwa lubelskiego"]
["nie, do udziału w projekcie nie będą premiowani przedsiębiorcy, których produkt/usługa będące przedmiotem internacjonalizacji wpisują się w inteligentne specjalizacje województwa lubelskiego"]
["tak, do udziału w projekcie premiowani będą przedsiębiorcy, których produkt/usługa będące przedmiotem internacjonalizacji wpisują się w wysoką technikę. "]
["nie, do udziału w projekcie nie będą premiowani przedsiębiorcy, których produkt/usługa będące przedmiotem internacjonalizacji wpisują się w wysoką technikę. "]

{"sheet":"Specyfikacja kosztów ","index":14,"n_rows":35,"n_cols":13,"rows_kept":35,"cut":false,"hidden":false,"merged":[]}
["Specyfikacja kosztów z uwzględnieniem analizy rynku."]
["Uwaga: pola oznaczone kolorem żółtym są polami nieedytowalnymi. W tabeli istnieje możliwość dodawania kolejnych wierszy."]
[null,"Instrukcja wypełniania arkusza (kliknij)"]
["Lp.","Nazwa kosztu","Nazwa zadania","Opis i uzasadnienie kosztów","Jednostka miary ","Ilość ","Analiza rynku ","Wartość netto zł","Stawka VAT","Wartość ogółem zł","Wydatki kwalifikowalne zł","% poziom wsparcia","Dofinansowanie zł"]
[{"$f":"ROW()-4","v":1},null,null,null,null,null,null,null,null,{"$f":"IF(Specyfikacja_kosztów[[#This Row],[Stawka VAT]]=\"ZW/ND\",Specyfikacja_kosztów[[#This Row],[Wartość netto zł]],ROUNDDOWN((Specyfikacja_kosztów[[#This Row],[Wartość netto zł]]*(1+Specyfikacja_kosztów[[#This Row],[Stawka VAT]])),2))","v":0},null,null,{"$f":"ROUNDDOWN(Specyfikacja_kosztów[[#This Row],[Wydatki kwalifikowalne zł]]*Specyfikacja_kosztów[[#This Row],[% poziom wsparcia]],2)","v":0}]
[{"$f":"ROW()-4","v":2},null,null,null,null,null,null,null,null,{"$f":"IF(Specyfikacja_kosztów[[#This Row],[Stawka VAT]]=\"ZW/ND\",Specyfikacja_kosztów[[#This Row],[Wartość netto zł]],ROUNDDOWN((Specyfikacja_kosztów[[#This Row],[Wartość netto zł]]*(1+Specyfikacja_kosztów[[#This Row],[Stawka VAT]])),2))","v":0},null,null,{"$f":"ROUNDDOWN(Specyfikacja_kosztów[[#This Row],[Wydatki kwalifikowalne zł]]*Specyfikacja_kosztów[[#This Row],[% poziom wsparcia]],2)","v":0}]
[3,null,null,null,null,null,null,null,null,{"$f":"IF(Specyfikacja_kosztów[[#This Row],[Stawka VAT]]=\"ZW/ND\",Specyfikacja_kosztów[[#This Row],[Wartość netto zł]],ROUNDDOWN((Specyfikacja_kosztów[[#This Row],[Wartość netto zł]]*(1+Specyfikacja_kosztów[[#This Row],[Stawka VAT]])),2))","v":0},null,null,{"$f":"ROUNDDOWN(Specyfikacja_kosztów[[#This Row],[Wydatki kwalifikowalne zł]]*Specyfikacja_kosztów[[#This Row],[% poziom wsparcia]],2)","v":0}]
[4,null,null,null,null,null,null,null,null,{"$f":"IF(Specyfikacja_kosztów[[#This Row],[Stawka VAT]]=\"ZW/ND\",Specyfikacja_kosztów[[#This Row],[Wartość netto zł]],ROUNDDOWN((Specyfikacja_kosztów[[#This Row],[Wartość netto zł]]*(1+Specyfikacja_kosztów[[#This Row],[Stawka VAT]])),2))","v":0},null,null,{"$f":"ROUNDDOWN(Specyfikacja_kosztów[[#This Row],[Wydatki kwalifikowalne zł]]*Specyfikacja_kosztów[[#This Row],[% poziom wsparcia]],2)","v":0}]
[5,null,null,null,null,null,null,null,null,{"$f":"IF(Specyfikacja_kosztów[[#This Row],[Stawka VAT]]=\"ZW/ND\",Specyfikacja_kosztów[[#This Row],[Wartość netto zł]],ROUNDDOWN((Specyfikacja_kosztów[[#This Row],[Wartość netto zł]]*(1+Specyfikacja_kosztów[[#This Row],[Stawka VAT]])),2))","v":0},null,null,{"$f":"ROUNDDOWN(Specyfikacja_kosztów[[#This Row],[Wydatki kwalifikowalne zł]]*Specyfikacja_kosztów[[#This Row],[% poziom wsparcia]],2)","v":0}]
[6,null,null,null,null,null,null,null,null,{"$f":"IF(Specyfikacja_kosztów[[#This Row],[Stawka VAT]]=\"ZW/ND\",Specyfikacja_kosztów[[#This Row],[Wartość netto zł]],ROUNDDOWN((Specyfikacja_kosztów[[#This Row],[Wartość netto zł]]*(1+Specyfikacja_kosztów[[#This Row],[Stawka VAT]])),2))","v":0},null,null,{"$f":"ROUNDDOWN(Specyfikacja_kosztów[[#This Row],[Wydatki kwalifikowalne zł]]*Specyfikacja_kosztów[[#This Row],[% poziom wsparcia]],2)","v":0}]
[7,null,null,null,null,null,null,null,null,{"$f":"IF(Specyfikacja_kosztów[[#This Row],[Stawka VAT]]=\"ZW/ND\",Specyfikacja_kosztów[[#This Row],[Wartość netto zł]],ROUNDDOWN((Specyfikacja_kosztów[[#This Row],[Wartość netto zł]]*(1+Specyfikacja_kosztów[[#This Row],[Stawka VAT]])),2))","v":0},null,null,{"$f":"ROUNDDOWN(Specyfikacja_kosztów[[#This Row],[Wydatki kwalifikowalne zł]]*Specyfikacja_kosztów[[#This Row],[% poziom wsparcia]],2)","v":0}]
[8,null,null,null,null,null,null,null,null,{"$f":"IF(Specyfikacja_kosztów[[#This Row],[Stawka VAT]]=\"ZW/ND\",Specyfikacja_kosztów[[#This Row],[Wartość netto zł]],ROUNDDOWN((Specyfikacja_kosztów[[#This Row],[Wartość netto zł]]*(1+Specyfikacja_kosztów[[#This Row],[Stawka VAT]])),2))","v":0},null,null,{"$f":"ROUNDDOWN(Specyfikacja_kosztów[[#This Row],[Wydatki kwalifikowalne zł]]*Specyfikacja_kosztów[[#This Row],[% poziom wsparcia]],2)","v":0}]
[9,null,null,null,null,null,null,null,null,{"$f":"IF(Specyfikacja_kosztów[[#This Row],[Stawka VAT]]=\"ZW/ND\",Specyfikacja_kosztów[[#This Row],[Wartość netto zł]],ROUNDDOWN((Specyfikacja_kosztów[[#This Row],[Wartość netto zł]]*(1+Specyfikacja_kosztów[[#This Row],[Stawka VAT]])),2))","v":0},null,null,{"$f":"ROUNDDOWN(Specyfikacja_kosztów[[#This Row],[Wydatki kwalifikowalne zł]]*Specyfikacja_kosztów[[#This Row],[% poziom wsparcia]],2)","v":0}]
[10,null,null,null,null,null,null,null,null,{"$f":"IF(Specyfikacja_kosztów[[#This Row],[Stawka VAT]]=\"ZW/ND\",Specyfikacja_kosztów[[#This Row],[Wartość netto zł]],ROUNDDOWN((Specyfikacja_kosztów[[#This Row],[Wartość netto zł]]*(1+Specyfikacja_kosztów[[#This Row],[Stawka VAT]])),2))","v":0},null,null,{"$f":"ROUNDDOWN(Specyfikacja_kosztów[[#This Row],[Wydatki kwalifikowalne zł]]*Specyfikacja_kosztów[[#This Row],[% poziom wsparcia]],2)","v":0}]
[11,null,null,null,null,null,null,null,null,{"$f":"IF(Specyfikacja_kosztów[[#This Row],[Stawka VAT]]=\"ZW/ND\",Specyfikacja_kosztów[[#This Row],[Wartość netto zł]],ROUNDDOWN((Specyfikacja_kosztów[[#This Row],[Wartość netto zł]]*(1+Specyfikacja_kosztów[[#This Row],[Stawka VAT]])),2))","v":0},null,null,{"$f":"ROUNDDOWN(Specyfikacja_kosztów[[#This Row],[Wydatki kwalifikowalne zł]]*Specyfikacja_kosztów[[#This Row],[% poziom wsparcia]],2)","v":0}]
[12,null,null,null,null,null,null,null,null,{"$f":"IF(Specyfikacja_kosztów[[#This Row],[Stawka VAT]]=\"ZW/ND\",Specyfikacja_kosztów[[#This Row],[Wartość netto zł]],ROUNDDOWN((Specyfikacja_kosztów[[#This Row],[Wartość netto zł]]*(1+Specyfikacja_kosztów[[#This Row],[Stawka VAT]])),2))","v":0},null,null,{"$f":"ROUNDDOWN(Specyfikacja_kosztów[[#This Row],[Wydatki kwalifikowalne zł]]*Specyfikacja_kosztów[[#This Row],[% poziom wsparcia]],2)","v":0}]
[13,null,null,null,null,null,null,null,null,{"$f":"IF(Specyfikacja_kosztów[[#This Row],[Stawka VAT]]=\"ZW/ND\",Specyfikacja_kosztów[[#This Row],[Wartość netto zł]],ROUNDDOWN((Specyfikacja_kosztów[[#This Row],[Wartość netto zł]]*(1+Specyfikacja_kosztów[[#This Row],[Stawka VAT]])),2))","v":0},null,null,{"$f":"ROUNDDOWN(Specyfikacja_kosztów[[#This Row],[Wydatki kwalifikowalne zł]]*Specyfikacja_kosztów[[#This Row],[% poziom wsparcia]],2)","v":0}]
[14,null,null,null,null,null,null,null,null,{"$f":"IF(Specyfikacja_kosztów[[#This Row],[Stawka VAT]]=\"ZW/ND\",Specyfikacja_kosztów[[#This Row],[Wartość netto zł]],ROUNDDOWN((Specyfikacja_kosztów[[#This Row],[Wartość netto zł]]*(1+Specyfikacja_kosztów[[#This Row],[Stawka VAT]])),2))","v":0},null,null,{"$f":"ROUNDDOWN(Specyfikacja_kosztów[[#This Row],[Wydatki kwalifikowalne zł]]*Specyfikacja_kosztów[[#This Row],[% poziom wsparcia]],2)","v":0}]
[15,null,null,null,null,null,null,null,null,{"$f":"IF(Specyfikacja_kosztów[[#This Row],[Stawka VAT]]=\"ZW/ND\",Specyfikacja_kosztów[[#This Row],[Wartość netto zł]],ROUNDDOWN((Specyfikacja_kosztów[[#This Row],[Wartość netto zł]]*(1+Specyfikacja_kosztów[[#This Row],[Stawka VAT]])),2))","v":0},null,null,{"$f":"ROUNDDOWN(Specyfikacja_kosztów[[#This Row],[Wydatki kwalifikowalne zł]]*Specyfikacja_kosztów[[#This Row],[% poziom wsparcia]],2)","v":0}]
[16,null,null,null,null,null,null,null,null,{"$f":"IF(Specyfikacja_kosztów[[#This Row],[Stawka VAT]]=\"ZW/ND\",Specyfikacja_kosztów[[#This Row],[Wartość netto zł]],ROUNDDOWN((Specyfikacja_kosztów[[#This Row],[Wartość netto zł]]*(1+Specyfikacja_kosztów[[#This Row],[Stawka VAT]])),2))","v":0},null,null,{"$f":"ROUNDDOWN(Specyfikacja_kosztów[[#This Row],[Wydatki kwalifikowalne zł]]*Specyfikacja_kosztów[[#This Row],[% poziom wsparcia]],2)","v":0}]
[17,null,null,null,null,null,null,null,null,{"$f":"IF(Specyfikacja_kosztów[[#This Row],[Stawka VAT]]=\"ZW/ND\",Specyfikacja_kosztów[[#This Row],[Wartość netto zł]],ROUNDDOWN((Specyfikacja_kosztów[[#This Row],[Wartość netto zł]]*(1+Specyfikacja_kosztów[[#This Row],[Stawka VAT]])),2))","v":0},null,null,{"$f":"ROUNDDOWN(Specyfikacja_kosztów[[#This Row],[Wydatki kwalifikowalne zł]]*Specyfikacja_kosztów[[#This Row],[% poziom wsparcia]],2)","v":0}]
[18,null,null,null,null,null,null,null,null,{"$f":"IF(Specyfikacja_kosztów[[#This Row],[Stawka VAT]]=\"ZW/ND\",Specyfikacja_kosztów[[#This Row],[Wartość netto zł]],ROUNDDOWN((Specyfikacja_kosztów[[#This Row],[Wartość netto zł]]*(1+Specyfikacja_kosztów[[#This Row],[Stawka VAT]])),2))","v":0},null,null,{"$f":"ROUNDDOWN(Specyfikacja_kosztów[[#This Row],[Wydatki kwalifikowalne zł]]*Specyfikacja_kosztów[[#This Row],[% poziom wsparcia]],2)","v":0}]
[19,null,null,null,null,null,null,null,null,{"$f":"IF(Specyfikacja_kosztów[[#This Row],[Stawka VAT]]=\"ZW/ND\",Specyfikacja_kosztów[[#This Row],[Wartość netto zł]],ROUNDDOWN((Specyfikacja_kosztów[[#This Row],[Wartość netto zł]]*(1+Specyfikacja_kosztów[[#This Row],[Stawka VAT]])),2))","v":0},null,null,{"$f":"ROUNDDOWN(Specyfikacja_kosztów[[#This Row],[Wydatki kwalifikowalne zł]]*Specyfikacja_kosztów[[#This Row],[% poziom wsparcia]],2)","v":0}]
[20,null,null,null,null,null,null,null,null,{"$f":"IF(Specyfikacja_kosztów[[#This Row],[Stawka VAT]]=\"ZW/ND\",Specyfikacja_kosztów[[#This Row],[Wartość netto zł]],ROUNDDOWN((Specyfikacja_kosztów[[#This Row],[Wartość netto zł]]*(1+Specyfikacja_kosztów[[#This Row],[Stawka VAT]])),2))","v":0},null,null,{"$f":"ROUNDDOWN(Specyfikacja_kosztów[[#This Row],[Wydatki kwalifikowalne zł]]*Specyfikacja_kosztów[[#This Row],[% poziom wsparcia]],2)","v":0}]
[21,null,null,null,null,null,null,null,null,{"$f":"IF(Specyfikacja_kosztów[[#This Row],[Stawka VAT]]=\"ZW/ND\",Specyfikacja_kosztów[[#This Row],[Wartość netto zł]],ROUNDDOWN((Specyfikacja_kosztów[[#This Row],[Wartość netto zł]]*(1+Specyfikacja_kosztów[[#This Row],[Stawka VAT]])),2))","v":0},null,null,{"$f":"ROUNDDOWN(Specyfikacja_kosztów[[#This Row],[Wydatki kwalifikowalne zł]]*Specyfikacja_kosztów[[#This Row],[% poziom wsparcia]],2)","v":0}]
[22,null,null,null,null,null,null,null,null,{"$f":"IF(Specyfikacja_kosztów[[#This Row],[Stawka VAT]]=\"ZW/ND\",Specyfikacja_kosztów[[#This Row],[Wartość netto zł]],ROUNDDOWN((Specyfikacja_kosztów[[#This Row],[Wartość netto zł]]*(1+Specyfikacja_kosztów[[#This Row],[Stawka VAT]])),2))","v":0},null,null,{"$f":"ROUNDDOWN(Specyfikacja_kosztów[[#This Row],[Wydatki kwalifikowalne zł]]*Specyfikacja_kosztów[[#This Row],[% poziom wsparcia]],2)","v":0}]
[23,null,null,null,null,null,null,null,null,{"$f":"IF(Specyfikacja_kosztów[[#This Row],[Stawka VAT]]=\"ZW/ND\",Specyfikacja_kosztów[[#This Row],[Wartość netto zł]],ROUNDDOWN((Specyfikacja_kosztów[[#This Row],[Wartość netto zł]]*(1+Specyfikacja_kosztów[[#This Row],[Stawka VAT]])),2))","v":0},null,null,{"$f":"ROUNDDOWN(Specyfikacja_kosztów[[#This Row],[Wydatki kwalifikowalne zł]]*Specyfikacja_kosztów[[#This Row],[% poziom wsparcia]],2)","v":0}]
[24,null,null,null,null,null,null,null,null,{"$f":"IF(Specyfikacja_kosztów[[#This Row],[Stawka VAT]]=\"ZW/ND\",Specyfikacja_kosztów[[#This Row],[Wartość netto zł]],ROUNDDOWN((Specyfikacja_kosztów[[#This Row],[Wartość netto zł]]*(1+Specyfikacja_kosztów[[#This Row],[Stawka VAT]])),2))","v":0},null,null,{"$f":"ROUNDDOWN(Specyfikacja_kosztów[[#This Row],[Wydatki kwalifikowalne zł]]*Specyfikacja_kosztów[[#This Row],[% poziom wsparcia]],2)","v":0}]
[25,null,null,null,null,null,null,null,null,{"$f":"IF(Specyfikacja_kosztów[[#This Row],[Stawka VAT]]=\"ZW/ND\",Specyfikacja_kosztów[[#This Row],[Wartość netto zł]],ROUNDDOWN((Specyfikacja_kosztów[[#This Row],[Wartość netto zł]]*(1+Specyfikacja_kosztów[[#This Row],[Stawka VAT]])),2))","v":0},null,null,{"$f":"ROUNDDOWN(Specyfikacja_kosztów[[#This Row],[Wydatki kwalifikowalne zł]]*Specyfikacja_kosztów[[#This Row],[% poziom wsparcia]],2)","v":0}]
[26,null,null,null,null,null,null,null,null,{"$f":"IF(Specyfikacja_kosztów[[#This Row],[Stawka VAT]]=\"ZW/ND\",Specyfikacja_kosztów[[#This Row],[Wartość netto zł]],ROUNDDOWN((Specyfikacja_kosztów[[#This Row],[Wartość netto zł]]*(1+Specyfikacja_kosztów[[#This Row],[Stawka VAT]])),2))","v":0},null,null,{"$f":"ROUNDDOWN(Specyfikacja_kosztów[[#This Row],[Wydatki kwalifikowalne zł]]*Specyfikacja_kosztów[[#This Row],[% poziom wsparcia]],2)","v":0}]
[27,null,null,null,null,null,null,null,null,{"$f":"IF(Specyfikacja_kosztów[[#This Row],[Stawka VAT]]=\"ZW/ND\",Specyfikacja_kosztów[[#This Row],[Wartość netto zł]],ROUNDDOWN((Specyfikacja_kosztów[[#This Row],[Wartość netto zł]]*(1+Specyfikacja_kosztów[[#This Row],[Stawka VAT]])),2))","v":0},null,null,{"$f":"ROUNDDOWN(Specyfikacja_kosztów[[#This Row],[Wydatki kwalifikowalne zł]]*Specyfikacja_kosztów[[#This Row],[% poziom wsparcia]],2)","v":0}]
[28,null,null,null,null,null,null,null,null,{"$f":"IF(Specyfikacja_kosztów[[#This Row],[Stawka VAT]]=\"ZW/ND\",Specyfikacja_kosztów[[#This Row],[Wartość netto zł]],ROUNDDOWN((Specyfikacja_kosztów[[#This Row],[Wartość netto zł]]*(1+Specyfikacja_kosztów[[#This Row],[Stawka VAT]])),2))","v":0},null,null,{"$f":"ROUNDDOWN(Specyfikacja_kosztów[[#This Row],[Wydatki kwalifikowalne zł]]*Specyfikacja_kosztów[[#This Row],[% poziom wsparcia]],2)","v":0}]
[29,null,null,null,null,null,null,null,null,{"$f":"IF(Specyfikacja_kosztów[[#This Row],[Stawka VAT]]=\"ZW/ND\",Specyfikacja_kosztów[[#This Row],[Wartość netto zł]],ROUNDDOWN((Specyfikacja_kosztów[[#This Row],[Wartość netto zł]]*(1+Specyfikacja_kosztów[[#This Row],[Stawka VAT]])),2))","v":0},null,null,{"$f":"ROUNDDOWN(Specyfikacja_kosztów[[#This Row],[Wydatki kwalifikowalne zł]]*Specyfikacja_kosztów[[#This Row],[% poziom wsparcia]],2)","v":0}]
[30,null,null,null,null,null,null,null,null,{"$f":"IF(Specyfikacja_kosztów[[#This Row],[Stawka VAT]]=\"ZW/ND\",Specyfikacja_kosztów[[#This Row],[Wartość netto zł]],ROUNDDOWN((Specyfikacja_kosztów[[#This Row],[Wartość netto zł]]*(1+Specyfikacja_kosztów[[#This Row],[Stawka VAT]])),2))","v":0},null,null,{"$f":"ROUNDDOWN(Specyfikacja_kosztów[[#This Row],[Wydatki kwalifikowalne zł]]*Specyfikacja_kosztów[[#This Row],[% poziom wsparcia]],2)","v":0}]
["Suma",null,null,null,null,null,null,{"$f":"SUBTOTAL(109,Specyfikacja_kosztów[Wartość netto zł])","v":0},null,{"$f":"SUBTOTAL(109,Specyfikacja_kosztów[Wartość ogółem zł])","v":0},{"$f":"SUBTOTAL(109,Specyfikacja_kosztów[Wydatki kwalifikowalne zł])","v":0},{"$f":"SUBTOTAL(109,Specyfikacja_kosztów[% poziom wsparcia])","v":0},{"$f":"SUBTOTAL(109,Specyfikacja_kosztów[Dofinansowanie zł])","v":0}]

{"sheet":"Koszty pośrednie","index":15,"n_rows":6,"n_cols":8,"rows_kept":6,"cut":false,"hidden":false,"merged":[[0,0,0,7],[1,0,1,7],[2,0,2,7]]}
["Koszty pośrednie"]
["Uwaga: pola oznaczone kolorem żółtym są polami nieedytowalnymi."]
["W tabeli poniżej należy wypełnić jedynie dane w kolumnie \"Procentowy poziom wsparcia\" i kolumnie \"Opis kosztów pośrednich\".\nUwaga: dane liczbowe uzyskanie w niniejszej tabeli w wierszu \"Razem\" w kolumnach: \"Koszty pośrednie wartość ogółem \", \"Koszty pośrednie wydatki kwalifikowalne \" oraz \"Dofinansowanie\" należy przenieść do zadania \"Koszty pośrednie\" znajdującego się w sekcji \"BUDŻET PROJEKTU\" w formularzu wniosku w WOD2021 zastępując wartości liczbowe wyliczone automatycznie przez system WOD2021 w tej sekcji dla wnioskodawcy."]
["Zadanie","Wartość ogółem","Wydatki kwalifikowalne","Koszty pośrednie - wartość ogółem","Koszty pośrednie - wydatki kwalifikowalne ","Procentowy poziom wsparcia","Dofinansowanie ","Opis kosztów pośrednich"]
["\"KOSZTY POŚREDNIE\"","Wiersze wypełniane przez arkusz na podstawie danych podanych w arkuszu \"Specyfikacja kosztów\".","Wiersze wypełniane przez arkusz na podstawie danych podanych w arkuszu \"Specyfikacja kosztów\"","Wiersze wypełniane przez arkusz na podstawie danych podanych we wcześniejszych kolumnach.","Wiersze wypełniane przez arkusz na podstawie danych podanych przez wnioskodawcę we wcześniejszych kolumnach.","Należy podać, z dokładnością do dwóch miejsc po przecinku, procentowy poziom wsparcia (dofinansowania) o jaki wnioskodawca zamierza ubiegać się w odniesieniu do kosztów pośrednich. Uwaga: podany poziom wsparcia nie może być wyższy niż dopuszczalny procentowy poziom wsparcia, o którym mowa w Regulaminie wyboru projektu. ","Wiersze wypełniane przez arkusz na podstawie danych podanych we wcześniejszych kolumnach.","Należy  wskazać rodzaje kosztów, które wnioskodawca planuje sfinansować w ramach kosztów pośrednich. Katalog kosztów pośrednich znajduje się w Regulaminie wyboru projektów. Koszty rozliczone metodą ryczałtową są traktowane jako wydatki poniesione. W ramach projektu beneficjent nie ma obowiązku zbierania ani opisywania dokumentów księgowych w celu potwierdzenia poniesienia wydatków, które zostały rozliczone jako koszty pośrednie.\nKoszty rozliczane metodą ryczałtową w ramach kosztów pośrednich nie mogą zostać wykazane w ramach innych kategorii kosztów projektu."]
["Razem",{"$f":"Specyfikacja_kosztów[[#Totals],[Wartość ogółem zł]]","v":0},{"$f":"Specyfikacja_kosztów[[#Totals],[Wydatki kwalifikowalne zł]]","v":0},{"$f":"ROUNDDOWN(Tabela20[[#This Row],[Wartość ogółem]]*0.07,2)","v":0},{"$f":"ROUNDDOWN(Tabela20[[#This Row],[Wydatki kwalifikowalne]]*0.07,2)","v":0},null,{"$f":"ROUNDDOWN(Tabela20[[#This Row],[Koszty pośrednie - wydatki kwalifikowalne ]]*Tabela20[[#This Row],[Procentowy poziom wsparcia]],2)","v":0}]

{"sheet":"Kumulacja pomocy","index":16,"n_rows":21,"n_cols":1,"rows_kept":21,"cut":false,"hidden":false,"merged":[]}
["Oświadczenie dotyczące kumulacji pomocy"]
["W związku z ubieganiem się o dofinansowanie projektu złożonego w ramach programu Fundusze Europejskie dla Lubelskiego 2021-2027 oświadczam, że (należy wybrać odpowiedź w poniższym wierszu z listy):"]
[]
["o takim samym lub podobnym zakresie rzeczowym w ramach wdrażanych przez LAWP Działań lub w ramach innego programu finansowanego ze środków publicznych"]
["oraz (należy wybrać odpowiedź w poniższym wierszu z listy):"]
[]
["Jednocześnie, w związku z ubieganiem się o dofinansowanie projektu, złożonego w ramach programu Fundusze Europejskie dla Lubelskiego 2021-2027 oświadczam, że w odniesieniu do kosztów kwalifikowalnych ujętych w projekcie, pokrywających się częściowo lub w całości (należy wybrać odpowiedź w poniższym wierszu z listy):"]
[]
["W przypadku gdy wnioskodawca przedkładał wniosek o dofinansowanie o takim samym lub podobnym zakresie do niniejszego projektu, będącego przedmiotem oceny, w celu uzyskania finansowania ze środków publicznych, należy złożyć szczegółowe wyjaśnienia na temat tego wniosku m.in. numer wniosku, zakres wniosku, informacje o pokrywających się kosztach."]
[]
[]
[]
[]
[]
[]
[]
[]
["oświadczam, że uzyskałem dofinansowanie na realizację projektu o takim samym lub podobnym zakresie, o którym mowa powyżej."]
["oświadczam, że nie uzyskałem dofinansowania na realizację projektu o takim samym lub podobnym zakresie, o którym mowa powyżej."]
["została mi przyznana inna pomoc państwa (w tym pomoc de minimis)."]
["nie została  mi przyznana inna pomoc państwa (w tym pomoc de minimis)."]

{"sheet":"Obszar EOG","index":17,"n_rows":42,"n_cols":6,"rows_kept":42,"cut":false,"hidden":false,"merged":[[10,0,10,5]]}
["Oświadczenie dotyczące sprawowania kontroli"]
["Wypełnienie arkusza jest obligatoryjne dla każdego wnioskodawcy. Zakres wypełnienia zależy jednak od formy prowadzenia działalności.\nW przypadku jednoosobowej działalności gospodarczej formularz wypełnia się w bardzo ograniczonym zakresie – wskazuje się wyłącznie siebie jako właściciela (100%), a większość pól dotyczących złożonej struktury właścicielskiej nie ma zastosowania. \nW spółkach cywilnych i jawnych należy wykazać wszystkich wspólników, natomiast w bardziej złożonych formach (np. spółkach komandytowych i komandytowo‑akcyjnych) konieczne może być przedstawienie pełnej struktury właścicielskiej, aż do ostatecznych właścicieli. \nNależy pamiętać, że formularz powinien odzwierciedlać rzeczywistą strukturę kontroli, a pola niedotyczące danej formy działalności można wskazać „nie dotyczy”."]
["1. Kontrola przedsiębiorstwa wnioskodawcy"]
["W wierszu poniżej należy wskazać czy wnioskodawca jest kontrolowany przez podmiot posiadający siedzibę na obszarze EOG (Europejskiego Obszaru Gospodarczego)\nKontrola to:\n - posiadanie ponad 50% kapitału zakładowego, udziałów lub praw głosu,\nlub\n- prawo do powoływania większości członków organów zarządzających lub nadzorczych,\nlub\n- wywieranie decydującego wpływu na decyzje strategiczne lub operacyjne wnioskodawcy na podstawie umowy zawartej z tym przedsiębiorstwem lub postanowień w jego statucie lub umowie spółki."]
[]
["2. Notowanie na giełdzie"]
["W polu poniżej należy wskazać, czy wnioskodawca jest spółką notowaną na giełdzie (np. GPW, Euronext, Nasdaq). Jeżeli tak, w polu opisowym należy wskazać, która giełda oraz udział w łącznej liczbie akcji.\nAkcje o zmiennym obrocie (którymi można swobodnie handlować) są wynikiem odjęcia akcji znajdujących się w bliskim posiadaniu od całkowitej liczby wyemitowanych akcji. Akcje w bliskim posiadaniu to akcje, które nie są w realnym obrocie i są w posiadaniu przez głównych właścicieli, zarząd, strategicznych inwestorów lub podmioty powiązane.   Reprezentuje część dostępną do nieograniczonego obrotu na regulowanym rynku akcji."]
[]
[]
["3. Struktura własnościowa i szczególne uprawnienia"]
["W poniższej tabeli należy wskazać wszystkich właścicieli, którzy samodzielnie lub łącznie z innym podmiotem, w tym jeżeli podmioty działają niezależnie od siebie:\na) \tdysponują pośrednio lub bezpośrednio większością  praw udziałowych lub głosów w szczególności na zgromadzeniu wspólników/walnym zgromadzeniu, w tym poprzez jakąkolwiek umowę, porozumienie lub stosunki z innymi wspólnikami, lub\nb) \tdysponują uprawnieniem do powoływania lub odwoływania większości członków organów decyzyjnych (np. zarządu, rady dyrektorów, rady nadzorczej), lub\nc) \twywierają decydujący wpływ na działalność wnioskodawcy (np.: poprzez zawartą umowę w celu zarządzania, rozporządzania zyskiem lub poprzez prawa szczególne w odniesieniu do swojego prawa własności, np.: prawo do zawetowania przeniesienia akcji, prawo pierwokupu, prawo do zakupu dodatkowych akcji lub inwestycji na określonych warunkach).\n\nInformacje wskazane w tabeli muszą być aktualne i zgodne z przedłożonymi dokumentami:\na) \t wyciągi z właściwego rejestru (np. rejestru handlowego), lista lub rejestr wspólników, oraz wszelkie inne istotne dokumenty zawierające wyraźne wskazanie wspólników i ich procentowego udziału w prawach głosu,\nb) \tumowa wspólników, protokół ustaleń między wspólnikami, statut, umowa spółki lub inne istotne dokumenty dotyczące procedur decyzyjnych w ramach jednostki organizacyjnej, umowy inwestycyjne między wspólnikami, itp.,\nc) \tjeżeli wspólnikami są jednostki organizacyjne (np. spółka prawa handlowego, fundacja rodzinna)  należy przedstawić poniżej strukturę własnościową, wszystkie poziomy własności/ewentualny łańcuch kontroli aż do ostatecznego właściciela będącego osobą fizyczną."]
["Nazwa podmiotu / imię i nazwisko właściciela","Siedziba","Obywatelstwo ","Własność/Kontrola","% udziału lub prawa głosu","Informacje dodatkowe"]
[]
[]
[]
[]
[]
[]
[]
[]
[]
[]
[]
[]
[]
[]
[]
[]
[]
[]
[]
[]
[]
[]
[]
[]
[]
["4. Ład korporacyjny"]
["W polu poniżej należy opisać:\na) organy decyzyjne (np. zarząd, rada dyrektorów, rada nadzorcza), ich skład,\nb) zasady dotyczące wyboru, mianowania, nominowania lub kadencji członków organów decyzyjnych lub innych stanowisk kierowniczych, \nc) procedury podejmowania decyzji, w tym informacje dotyczące wymaganej większości lub kworum potrzebnego do podjęcia decyzji.\n\nWszystkie informacje muszą być aktualne i spójne z przedłożonymi dokumentami (dokumenty ustanawiające/opisujące organy decyzyjne, zasady dotyczące wyboru, mianowania, nominacji lub kadencji, procedury decyzyjne w ramach jednostki organizacyjnej np. statut, umowa spółki, regulamin, sprawozdania dotyczące ładu korporacyjnego itp.). "]
[]
["5. Inne źródła kontroli"]
["Należy wskazać, czy istnieje jakikolwiek inny niż wskazany powyżej środek, proces lub powiązanie, które ostatecznie przyznają kontrolę podmiotowi z państwa należącego do EOG.\nPoniższe inforamcje muszą być aktualne i spójne z przedłożonymi dokumentami potwierdzającymi posiadaną kontrolę."]

{"sheet":"Tajemnica przedsiębiorstwa","index":18,"n_rows":4,"n_cols":1,"rows_kept":4,"cut":false,"hidden":false,"merged":[]}
["Oświadczenie dotyczące tajemnicy przedsiębiorstwa"]
["W związku z ubieganiem się o dofinansowanie projektu oświadczam, że informacje zawarte we wniosku posiadają wartość gospodarczą i są prawnie zastrzeżone jako informacje poufne lub podjęto w przedsiębiorstwie niezbędne działania w celu zachowania ich poufności oraz nie są informacjami powszechnie dostępnymi i w związku z tym stanowią tajemnicę przedsiębiorstwa w rozumieniu art. 11 ust. 4 ustawy z dnia 16 kwietnia 1993 r. o zwalczaniu nieuczciwej konkurencji. Wyrażam zgodę na udostępnienie ww. danych wyłącznie, jeżeli konieczność ich udostępnienia będzie wynikać z przepisów obowiązującego prawa, w niezbędnym do powyższego zakresie. Jednocześnie wyrażam zgodę na wykorzystanie ww. informacji w celu wykonywania czynności niezbędnych do oceny dokumentacji aplikacyjnej, rozliczenia oraz kontroli projektu."]
[]
["W przypadku wyboru opcji \"TAK\" w polu poniżej należy wskazać punkty wniosku oraz załącznikach, w których zawarto informacje stanowiące prawnie chronioną tajemnicę przedsiębiorstwa. Jeżeli w pytaniu powyżej wybrano opcję \"NIE\" pole opisowe należy pozostawić niewypełnione."]

{"sheet":"Oświadczenia","index":19,"n_rows":21,"n_cols":2,"rows_kept":21,"cut":false,"hidden":false,"merged":[]}
["Oświadczenia wnioskodawcy","Potwierdzam złożenie oświadczenia"]
["Zakładka Oświadczenia wnioskodawcy służy do potwierdzenia przez wnioskodawcę prawdziwości zawartych danych we wniosku i załącznikach (stanowiących jego integralną część) oraz przyjęcia pełnej odpowiedzialności za realizację projektu dofinansowanego z funduszy europejskich i wszystkich konsekwencji wynikających z tego faktu, co odbywa się poprzez zapoznanie się i zaakceptowanie każdego z poniższych warunków realizacji projektu w ramach programu Fundusze Europejskie dla Lubelskiego 2021-2027, poprzez wybór opcji \"TAK\" lub \"NIE DOTYCZY\" w kolumnie \"Potwierdzam złożenie oświadczenia\" (brak wyboru opcji \"TAK\" lub \"NIE DOTYCZY\" jest równoznacznych z brakiem złożenia danego oświadczenia przez wnioskodawcę)."]
["Oświadczam, że dane zawarte we wniosku o dofinansowanie złożonym w WOD2021 są zgodne z rzeczywistym stanem faktycznym i prawnym."]
["Oświadczam, że dane zawarte w niniejszym Biznes Planie część opisowa oraz wszystkich pozostałych załącznikach składanych wraz z wnioskiem o dofinansowanie w WOD2021 są zgodne ze stanem faktycznym i prawnym."]
["Oświadczam, że jestem świadomy/świadoma odpowiedzialności karnej, o której mowa w art. 233 § 1 ustawy z dnia 6 czerwca 1997 r. Kodeks karny, za podanie fałszywych danych lub złożenie fałszywych oświadczeń, w ramach dokumentacji niezbędnej do oceny projektu lub objęcia go dofinansowaniem."]
["Oświadczam, że jestem świadomy/świadoma odpowiedzialności karnej, za przedkładanie podrobionych, przerobionych, poświadczających nieprawdę albo nierzetelnych dokumentów oraz za składanie nierzetelnych, pisemnych oświadczeń co do okoliczności o istotnym znaczeniu dla uzyskania wsparcia, a także odpowiedzialności karnej za niepowiadomienie LAWP o powstaniu sytuacji mogącej mieć wpływ na wstrzymanie albo ograniczenie wysokości udzielonego wsparcia."]
["Oświadczam, że nie podlegam wykluczeniu z możliwości ubiegania się o wsparcie z funduszy strukturalnych na podstawie art. 207 ust. 4 Ustawy z dnia 27 sierpnia 2009 r. o finansach publicznych, art. 12 ust. 1 pkt 1 Ustawy z dnia 15 czerwca 2012 r. o skutkach powierzenia wykonywania pracy cudzoziemcom przebywającym wbrew przepisom na terenie Rzeczypospolitej Polskiej, art. 9 ust. 1 pkt 2a Ustawy z dnia 28 października 2002 r. o odpowiedzialności podmiotów zbiorowych za czyny zabronione pod groźbą kary."]
["Oświadczam, że w stosunku do członków organu zarządzającego wnioskodawcy nie toczy się postępowanie karne lub karne skarbowe za przestępstwo składania fałszywych zeznań, przekupstwa, przeciwko mieniu, wiarygodności dokumentów, obrotowi pieniędzmi i papierami wartościowymi, obrotowi gospodarczemu, systemowi bankowemu albo inne związane z wykonywaniem działalności gospodarczej lub popełnione w celu osiągnięcia korzyści majątkowych, w związku z dofinansowaniem, które zostało udzielone ze środków publicznych na realizację projektu temu wnioskodawcy, podmiotowi powiązanemu z nim osobowo lub kapitałowo lub członkowi organów zarządzających tego wnioskodawcy lub podmiotu."]
["Oświadczam, że nie ciąży na mnie obowiązek zwrotu pomocy wynikający z decyzji Komisji Europejskiej uznającej taką pomoc za niezgodną z prawem oraz z rynkiem wewnętrznym."]
["Oświadczam, że zgodnie z art. 66 Rozporządzenia Parlamentu Europejskiego i Rady (UE) nr 2021/1060 z dnia 24 czerwca 2021 r. projekt nie dotyczy przeniesienia produkcji oraz spełnia warunki, o których mowa w art. 73 ust. 2 lit. i ww. Rozporządzenia."]
["Oświadczam, że nie zostałem wykluczony z możliwości ubiegania się o dofinansowanie na podstawie Ustawy z dnia 13 kwietnia 2022 r. o szczególnych rozwiązaniach w zakresie przeciwdziałania wspieraniu agresji na Ukrainę oraz służących ochronie bezpieczeństwa narodowego."]
["Oświadczam, że projekt nie dotyczy rodzajów działalności wykluczonych, o których mowa w art. 7 ust. 1 Rozporządzenia Parlamentu Europejskiego i Rady (UE) 2021/1058 z dnia 24 czerwca 2021 r. w sprawie Europejskiego Funduszu Rozwoju Regionalnego i Funduszu Spójności."]
["Oświadczam, że zapoznałem/zapoznałam się z Regulaminem wyboru projektów i akceptuję jego zasady."]
["Oświadczam, że projekt jest zgodny z właściwymi przepisami prawa unijnego i polskiego."]
["Oświadczam, że nie pozostaję pod zarządem komisarycznym, nie znajduje się w toku likwidacji lub postępowania upadłościowego."]
["Oświadczam, że nie zalegam w opłacaniu składek na ubezpieczenie społeczne, ubezpieczenie zdrowotne, Fundusz Pracy i Fundusz Gwarantowanych Świadczeń Pracowniczych oraz podatków i innych należności publicznoprawnych."]
["Wyrażam zgodę na udostępnienie niniejszego wniosku podmiotom dokonującym ewaluacji, w tym w szczególności na udzielanie informacji na potrzeby ewaluacji przeprowadzanych przez Instytucję Zarządzającą, Instytucję Pośredniczącą lub inną uprawnioną instytucję lub jednostkę organizacyjną z zastrzeżeniem zapewnienia ochrony informacji w nim zawartych."]
["Wyrażam zgodę na kontrolę przeprowadzaną przez LAWP w miejscu realizacji projektu i/lub siedzibie wnioskodawcy oraz udostępnienie niezbędnych dokumentów."]
["Oświadczam, że projekt w zakresie, którego wsparcie stanowi pomoc publiczną nie dotyczy rodzajów działalności wykluczonych, o których mowa w art. 1 ust. 2 - 5 Rozporządzenia Komisji (UE) Nr 651/2014 z dnia 17 czerwca 2014 r. uznającego niektóre rodzaje pomocy za zgodne z rynkiem wewnętrznym w zastosowaniu art. 107 i 108 Traktatu."]
["Oświadczam, że projekt w zakresie którego wsparcie stanowi pomoc de minimis nie dotyczy rodzajów działalności wykluczonych, o których mowa w art. 1 ust. 1 Rozporządzenia Komisji (UE) Nr 2023/2831 z dnia 13 grudnia 2023 r. w sprawie stosowania art. 107 i 108 Traktatu o funkcjonowaniu Unii Europejskiej do pomocy de minimis."]
["Oświadczam, że  zapoznałem się z klauzulą informacyjną dotyczącą przetwarzania danych osobowych, określoną w Regulaminie wyboru projektów."]

{"sheet":"Słownik 2.7","index":20,"n_rows":24,"n_cols":1,"rows_kept":24,"cut":false,"hidden":true,"merged":[]}
["oświadczam, że uzyskałem dofinansowanie na realizację projektu o takim samym lub podobnym zakresie, o którym mowa powyżej."]
["oświadczam, że nie uzyskałem dofinansowania na realizację projektu o takim samym lub podobnym zakresie, o którym mowa powyżej."]
["została mi przyznana inna pomoc państwa (w tym pomoc de minimis). "]
["nie została  mi przyznana inna pomoc państwa (w tym pomoc de minimis). "]
[]
["TAK"]
["NIE "]
[]
["NIE - Oświadczam, iż nie mogę odzyskać w żaden sposób poniesionego kosztu podatku VAT.\nJednocześnie zobowiązuje się do zwrotu zrefundowanej w ramach projektu części poniesionego VAT, jeżeli zaistnieją przesłanki umożliwiające odzyskanie tego podatku.\nZobowiązuję się także do niezwłocznego poinformowania LAWP o jakichkolwiek zmianach w zakresie kwalifikowalności podatku VAT, jak również zobowiązuję się do udostepnienia dokumentacji finansowo-księgowej oraz udzielenia uprawnionym organom kontrolnym informacji umożliwiających weryfikację kwalifikowalności podatku VAT."]
["TAK"]
[]
["NIE"]
["TAK"]
[]
["I półrocze 2023 r."]
["II półrocze 2023 r."]
["I półrocze 2024 r."]
["II półrocze 2024 r."]
["I półrocze 2025 r."]
["II półrocze 2025 r."]
["I półrocze 2026 r."]
["II półrocze 2026 r."]
["I półrocze 2027 r."]
["II półrocze 2027 r."]

{"sheet":"słownik RIS","index":21,"n_rows":117,"n_cols":1,"rows_kept":117,"cut":false,"hidden":true,"merged":[]}
["TAK"]
["NIE"]
[]
[]
["I. ŻYWNOŚĆ WYSOKIEJ JAKOŚCI "]
["111 Innowacyjne działania na rzecz poprawy żyzności i produktywności gleb"]
["\n112 Wysokiej jakości materiał siewny, rozmnożeniowy i nasadzeniowy o zwiększonej odporności na choroby i szkodniki oraz warunki suszy rolniczej\n"]
["113 Bezpieczeństwo oraz poprawa jakości surowców roślinnych w zakresie stosowania nawozów i środków ochrony roślin\n"]
["114 Innowacyjne technologie i maszyny dla rolnictwa, w tym precyzyjnego"]
["121 Zdrowa żywność, w tym ekologiczna, tradycyjna i regionalna"]
["122 Innowacyjne sieci dystrybucji zdrowej, lokalnej i sezonowej żywności tzw.kooperatywy spożywcze"]
["123 Technologie przetwórstwa rolno-spożywczego ograniczające zużycie energii i wody"]
["124 Technologie podnoszące jakość, trwałość, funkcjonalność i bezpieczeństwo produktów pochodzenia roślinnego i zwierzęcego\n"]
["125 Zrównoważona produkcja, przetwórstwo i przechowalnictwo"]
["126 Innowacyjne systemy i oprogramowanie oraz inteligentne metody i narzędzia zarządzania i monitorowania przebiegu procesu produkcji oraz oceny jakości surowców i produktów gotowych                                                                                                                                                                                                                                                                                                                                                                                                                                                \n\n"]
["127 Rozwijanie narzędzi i nowoczesnych technik badawczych oraz markerów jakości żywności"]
["128 Innowacyjne systemy, układy, sensory i detektory elektroniczne i fotoniczne do zastosowań rolno-spożywczych "]
["129 Technologie cyfrowe, w tym rozwiązania informatyczne służące do gromadzenia i analizy danych, wspomagających procesy produkcyjne w sektorze rolno-spożywczym\n"]
["130 Technologie w zakresie transportu i przechowywania żywności"]
["131 Innowacyjne modele marketingowe w promocji żywności wysokiej jakości"]
[]
["II. ZIELONA GOSPODARKA"]
["211 Efektywne zarządzanie zasobami obejmujące ich przetwarzanie, produkcję, sprzedaż, użytkowanie i zagospodarowanie odpadów\n"]
["212 Wykorzystywanie biomasy do produkcji materiałów zastępujących inne nieodnawialne surowce"]
["213 Obniżanie emisyjności przemysłu"]
["214 Technologie i systemy przeciwdziałające zagrożeniom środowiskowym oraz monitoring poziomu zanieczyszczeń"]
["215 Biodegradowalność surowców oraz optymalizacja zagospodarowania odpadów poprodukcyjnych (technologie, procesy, produkty)\n"]
["216 Zero waste food"]
["217 Biotechnologie w inżynierii i ochronie środowiska"]
["218 Innowacyjne systemy, układy, sensory i detektory elektroniczne i fotoniczne do zastosowań w ochronie środowiska"]
["219 Metody ochrony i rekultywacji gleb oraz oczyszczanie ścieków"]
["220 Oszczędna i efektywna gospodarka wodna"]
["221 Czyste technologie węglowe"]
["222 Substancje bioaktywne przeznaczone do wytwarzania środków ochrony roślin, nawozów i leków, w tym leków weterynaryjnych \n"]
["223 (Bio)polimery i (bio)tworzywa"]
["231 Zwiększenie wykorzystania odnawialnych źródeł energii"]
["232 Energia z odpadów i paliw alternatywnych"]
["233 Poprawa efektywności konwersji energii"]
["234 Innowacyjne systemy wytwarzania, zarządzania, przesyłu, dystrybucji energii\n"]
["235 Inteligentne rozwiązania w sieciach elektroenergetycznych"]
["236 Metody i technologie magazynowania energii"]
["237 Smart mettering i inteligentne liczniki energii"]
["238 Nowoczesne systemy ciepłownicze i chłodnicze"]
["239 Systemy izolacyjne sprzyjające energooszczędności"]
["240 Systemy dystrybucji energii w budynkach"]
["241 Inteligentne, energooszczędne systemy oświetleniowe"]
["242 Rozwój infrastruktury sprzyjającej elektromobilności"]
[]
["III. ZDROWE SPOŁECZEŃSTWO"]
["311 Promocja zdrowego stylu życia, w tym rozwój branży wellness"]
["312 Profilaktyka chorób cywilizacyjnych i przeciwdziałanie zagrożeniom epidemiologicznym, w tym nowe innowacyjne metody leczenia i profilaktyki"]
["313 Turystyka, w tym turystyka zdrowotna i prozdrowotna"]
["314 Wykorzystanie zasobów (walorów) naturalnych regionu w funkcji uzdrowiskowej\n"]
["315 Rozwój usług i produktów skierowanych do osób starszych, z niepełnosprawnościami, sprzyjających utrzymaniu ich samodzielności i aktywności"]
["316 Nowe leki, innowacyjne suplementy diety, żywność funkcjonalna i środki spożywcze specjalnego przeznaczenia żywieniowego"]
["317 Innowacyjne kosmetyki"]
["318 Innowacyjne substancje biologicznie czynne jako potencjalne leki nowej generacji"]
["321 Diagnostyka i terapia genowa"]
["322 Medycyna spersonalizowana"]
["323 Zintegrowana opieka medyczna"]
["324 Chirurgia minimalnie inwazyjna"]
["325 Medycyna regeneracyjna i inżynieria tkankowa"]
["326 Medycyna translacyjna"]
["331 Teleopieka i telemedycyna"]
["332 Nowoczesne technologie materiałowe i materiały w medycynie i rehabilitacji"]
["333 Informatyczne narzędzia medyczne do gromadzenia i analizy danych medycznych w celach diagnostycznych, terapeutycznych i rehabilitacyjnych"]
["334 Innowacyjne systemy, układy, sensory i detektory elektroniczne i fotoniczne do zastosowań medycznych"]
["335 Biosensory"]
["336 Algorytmy sztucznej inteligencji do zastosowania medycznego"]
["337 Robotyka medyczna"]
["338 Rzeczywistość wirtualna i technologie symulacyjne w medycynie"]
[]
["IV. CYFROWE SPOŁECZEŃSTWO"]
["411 Gromadzenie i przechowywanie danych, dygitalizaja zasobów, chmury"]
["412 Aplikacje i analizy potencjału rynku"]
["413 Projektowanie, zarządzanie, optymalizacja i sterowanie procesami produkcyjnymi"]
["414 Technologie i systemy służące świadczeniu usług dla biznesu"]
["415 Technologie i inteligentne systemy telekomunikacyjne i teleinformatyczne, w tym internet rzeczy"]
["416 Systemy służące sprzedaży oraz obsłudze klienta, platformy e-zakupowe, telemarketing"]
["417 Systemy i usługi płatnicze i finansowe (e-commerce)"]
["421 Systemy wykorzystywane w transporcie, w tym systemy sterowania ruchem"]
["422 Inteligentne bezzałogowe statki latające"]
["423 Systemy i urządzenia sterowane numerycznie"]
["431 Bezpieczeństwo i systemy ochrony cyberprzestrzeni"]
["432 Cyberbezpieczeństwo systemów energetycznych"]
["433 Systemy przewidywania i zapobiegania awariom"]
["434 Przestrzenne systemy nawigacje i monitorowania, w tym rozwiązania stosowane w obiektach zamkniętych"]
["435 Zintegrowane systemy zarządzania budynkami"]
["436 Systemy bezinwazyjnego pomiaru i detekcji"]
["437 Projektowanie, w tym projektowanie wnętrz i zabudowy"]
["438 Rzeczywistość wirtualna i technologie symulacyjne"]
["441 Wykorzystanie TIK na rzecz rozwoju edukacji w obszarze umiejętności cyfrowych w celu stworzenia warunków do edukacji zdalnej (na odległość)"]
["442 Innowacyjne produkty i technologie stosowane w upowszechnianiu kultury i dziedzictwa narodowego oraz zabezpieczaniu zbiorów i ich konserwacji"]
["443 Innowacyjne produkty i technologie stosowane w sporcie, rozrywce, reklamie i multimediach"]
["444 Rozwój oprogramowania i technologii związanych ze sztuczną inteligencją i uczeniem maszynowym"]
[]
["V. TECHNOLOGIE MATERIAŁOWE, PROCESY PRODUKCYJNE I LOGISTYCZNE"]
["511 Materiały o podwyższonych parametrach konstrukcyjnych i izolacyjnych, trwałości oraz charakteryzujące się wysoką odpornością na zużycie i czynniki degradujące"]
["512 Niskoodpadowe technologie i linie produkcyjne wykorzystywane w procesach produkcyjnych"]
["513 Innowacyjne maszyny i urządzenia zmniejszające energochłonność i pracochłonność  produkcji oraz zwiększające bezpieczeństwo pracy"]
["514 Technologie i linie produkcyjne do wytwarzania materiałów i wyrobów z zastosowaniem surowców towarzyszących, produktów ubocznych i odpadów"]
["515 Nowoczesne technologie i materiały dla sektora lotniczego"]
["516 Inżynieria mechaniczna w zakresie nowoczesnych metod wytwarzania"]
["517 Innowacyjne metody i narzędzia stosowane do oceny jakości wykonanych produktów\n"]
["521 Nowoczesne technologie budowy dróg i mostów"]
["522 Innowacyjne konstrukcje nośne z zastosowaniem nowoczesnych materiałów konstrukcyjnych, w tym kompozytów"]
["523 Technologie i systemy sprzyjające racjonalnemu wykorzystaniu ciepła i wody w procesach produkcyjnych"]
["524 Ponowne wykorzystanie materiałów oraz elementów budowlanych (recykling w budoownictwie)"]
["531 Innowacyjne pokrycia dachowe oraz zawansowane technologicznie okna i drzwi\n"]
["532 Innowacyjne systemy, układy, sensory i detektory elektroniczne i fotoniczne do  zastosowań w procesach produkcyjnych i logistycznych, energetyce i budownictwie"]
["533 Innowacyjne technologie VR do zastosowań w procesach produkcyjnych i budownictwie"]
["541 Automatyka przemysłowa i usługowa"]
["542 Inteligentne opakowania umożliwiające monitoring jakości i zawartości otoczenia\n\n\n"]
["543 Inteligentne magazyny z wysoce zautomatyzowanymi procesami logistycznymi"]
["544 Nowoczesne opakowania, w tym biodegradowalne i wielokrotnego użytku"]
["545 Zarządzanie procesami technologicznymi i logistycznymi, w tym sterowanie łańcuchem dostaw"]
["546 Systemy i rozwiązania stosowane w usługach spedytorskich i dyspozytorskich"]

{"sheet":"słownik koszty 1.3","index":22,"n_rows":20,"n_cols":20,"rows_kept":20,"cut":false,"hidden":true,"merged":[]}
["KOSZTY B+R",null,null,null,null,"Wspólny",null,null,"Zadania",null,null,null,null,null,null,null,null,null,null,"I półrocze 2023 r."]
["Personel Projektu",null,null,null,null,"Personel Projektu (tylko komponent B+R)",null,null,"Badania przemysłowe",null,null,null,null,null,null,null,null,null,null,"II półrocze 2023 r."]
["Usługi zewnętrzne",null,null,null,null,"Usługi zewnętrzne (nie dotyczy wdrożenia)",null,null,"Eksperymentalne prace rozwojowe",null,null,null,null,null,null,null,null,null,null,"I półrocze 2024 r."]
["Amortyzacja",null,null,null,null,"Amortyzacja (tylko komponent B+R)",null,null,"Prace przedwdrożeniowe",null,null,null,null,null,null,null,null,null,null,"II półrocze 2024 r."]
["Nieruchomości",null,null,null,null,"Nieruchomości (nie dotyczy prac przedwdrożeniowych)",null,null,"Bezpośrednie wdrożenie ",null,null,null,null,null,null,null,null,null,null,"I półrocze 2025 r."]
["Dostawy (inne niż środki trwałe)",null,null,null,null,"Dostawy (inne niż środki trwałe) (tylko komponent B+R)",null,null,null,null,null,null,null,null,null,null,null,null,null,"II półrocze 2025 r."]
["Podatki i opłaty",null,null,null,null,"Podatki i opłaty",null,null,null,null,null,null,null,null,null,null,null,null,null,"I półrocze 2026 r."]
[null,null,null,null,null,"Roboty budowlane (tylko wdrożenie)",null,null,null,null,null,null,null,null,null,null,null,null,null,"II półrocze 2026 r."]
["Komponent wdrożeniowy",null,null,null,null,"Środki trwałe/Dostawy (tylko wdrożenie)",null,null,null,null,null,null,null,null,null,null,null,null,null,"I półrocze 2027 r."]
[null,null,null,null,null,"Wartości niematerialne i prawne (tylko wdrożenie)",null,null,null,null,null,null,null,null,null,null,null,null,null,"II półrocze 2027 r."]
["Prace przedwdrożeniowe"]
["Usługi zewnętrzne"]
["Podatki i opłaty"]
[]
["Wdrożenie"]
["Nieruchomości"]
["Roboty budowlane"]
["Środki trwałe"]
["Wartości niematerialne i prawne"]
["Podatki i opłaty"]

{"sheet":"Słownik","index":23,"n_rows":31,"n_cols":1,"rows_kept":31,"cut":false,"hidden":true,"merged":[]}
["uzyskałem dofinansowanie na jego realizację."]
["nie uzyskałem dofinansowania na jego realizację."]
["została mi przyznana inna pomoc państwa (w tym pomoc de minimis). "]
["nie została  mi przyznana inna pomoc państwa (w tym pomoc de minimis). "]
[]
["TAK"]
["NIE "]
[]
["NIE - \nOświadczam, iż nie mogę odzyskać w żaden sposób poniesionego kosztu podatku VAT.\nJednocześnie zobowiązuje się do zwrotu zrefundowanej w ramach projektu części poniesionego VAT, jeżeli zaistnieją przesłanki umożliwiające odzyskanie tego podatku.\nZobowiązuję się także do niezwłocznego poinformowania LAWP o jakichkolwiek zmianach w zakresie kwalifikowalności podatku VAT, jak również zobowiązuję się do udostepnienia dokumentacji finansowo-księgowej oraz udzielenia uprawnionym organom kontrolnym informacji umożliwiających weryfikację kwalifikowalności podatku VAT."]
["TAK."]
[]
["NIE"]
["TAK"]
[]
["I półrocze 2023 r."]
["II półrocze 2023 r."]
["I półrocze 2024 r."]
["II półrocze 2024 r."]
["I półrocze 2025 r."]
["II półrocze 2025 r."]
["I półrocze 2026 r."]
["II półrocze 2026 r."]
["I półrocze 2027 r."]
["II półrocze 2027 r."]
[]
[]
[]
["Utworzenie nowego zakładu"]
["Zwiększenie zdolności produkcyjnej istniejącego zakładu"]
["Dywersyfikacja produkcji zakładu poprzez wprowadzenie produktów lub usług dotąd niewytwarzanych lub nieświadczonych przez ten zakład"]
["Zasadnicza zmiana całościowego procesu produkcji produktu lub produktów, których dotyczy inwestycja w ten zakład"]

{"sheet":"Arkusz1","index":24,"n_rows":0,"n_cols":0,"rows_kept":0,"cut":false,"hidden":true,"merged":[]}